Cogmind - Beta 16.1 @@@ ROGUE MODE // 2026.03.06 @ 16:06:49 Player: the Result: Establishing 0b11! Performance ------------- Evolutions (9) 4500 Regions Visited (29) 5800 Robots Destroyed (1239) 6195 Value Destroyed (72730) 72730 Prototype IDs (379) 7580 Alien Tech Used (6) 1200 Bonus (63277) 63277 TOTAL SCORE: 161282 Bonus ------- Triggered High Security 1000 High Alert Combat Kills 45116 Follower Combat Kills 1597 Hunted by Unchained 1000 Network Hubs Disabled 800 Met Data Miner 300 Met Zhirov 300 Built Enhanced Grunts 300 A7 Reached Mainframe 300 Met R17 at Cetus 500 Met R17 at Research 2000 Scanned by Researcher 500 Acquired SGEMP 2000 Delivered SGEMP 2000 Destroyed MAIN.C Guards 500 Met MAIN.C 5000 Destroyed MAIN.C Shell 5000 Destroyed MAIN.C 10000 Win 3000 Friendly Fire -17936 Cogmind --------- Core Integrity 319/1600 Matter 147/300 Energy 734/763 System Corruption 0% Temperature Cool (1) Movement Hovering (57) Location 0b11 Command Parts ------- > --- POWER (3) -------- Singularity-ZP Reactor > --- PROPULSION (6) --- Hovering Antigrav-HC Exoskeleton > --- UTILITY (12) ----- Armored Scrap Engine Experimental Cooling System Experimental Coolant Injector (fused) Concept Antigrav Storage Unit Enhanced Optical Array Experimental Targeting Computer Experimental Target Analyzer Experimental Core Analyzer Experimental Kinecellerator Concept Network Penetrator > --- WEAPON (4) ------- Hvy. Directed Graviton Construct/C > --- INVENTORY (25) --- Reinforced Quantum Reactor Concept Zero-point Core Advanced Coolant Injector Experimental Matter Compressor (500) Concept NT7 Matterbank (750) Particle Accelerator Quantum Capacitor Quantum Capacitor Advanced Weapon Cycler Advanced Weapon Cycler Experimental Transmission Jammer Concept Cloak Mesh Advanced Force Field Peak State ------------ > --- POWER ------------ Singularity-ZP Reactor > --- PROPULSION ------- Hovering Antigrav-HC Exoskeleton > --- UTILITY ---------- Armored Scrap Engine Concept Thermoelectric Network Concept Antigrav Storage Unit Experimental Targeting Computer Experimental Targeting Computer Concept Hypertargeting System Experimental Core Analyzer Experimental Weapon Cycler Concept Cloak Mesh Concept Antimissile System Concept Matter Streamer > --- WEAPON ----------- Hvy. Directed Graviton Construct/C > --- INVENTORY -------- Hybrid Graviton Reactor Concept Zero-point Core Concept Zero-point Core Experimental Coolant Injector Experimental Coolant Injector Concept NT7 Matterbank Experimental Core Analyzer Particle Accelerator Experimental Kinecellerator Experimental Kinecellerator Quantum Capacitor Quantum Capacitor Advanced Weapon Cycler Experimental Transmission Jammer Advanced Force Field Advanced Force Field Concept Network Penetrator Concept Network Penetrator Multirail Enhanced Hardcell Cannon Concept Miniperforator Concept Miniperforator Concept Helical Railcannon [Rating: 267] Favorites ----------- Power Constructs Engine Heavy Ion Engine Power Core Light Nuclear Core Reactor Constructs Propulsion Constructs Treads Light Treads Leg Titanium Leg Hover Unit Constructs Utility High-capacity Storage Unit Device Armored Scrap Engine Storage High-capacity Storage Unit Processor Enhanced Optical Array Hackware Hacking Suite Protection Centrium Medium Armor Plating Weapon Constructs Energy Gun Heavy Particle Gun Energy Cannon Beam Cannon Ballistic Gun Enhanced Autogun Ballistic Cannon Constructs Launcher Scatter Rocket Array Special Weapon Multitool Build | -11 -10 -10 -8 -8 -8 -6 -6 -6 -6 -6 -6 -5 -5 -5 -5 -5 -5 -4 -4 -4 -4 -3 -3 -3 -2 -2 -2 -1 -1 ------- Run | Yrd Mat Sub Mat Sto Rec Fac Was Fac Low Low Dat Pro Fac Ext Cet Arc Hub Fac Upp Upp Zhi Pro Res Tes Res Qua Frg Acc Com Slots Evolved 18 | . . . 4 . . 4 . . . . . . 2 . . . . 2 . . . . 2 . 2 . . 2 . Power 2 | . . . 1 . . . . . . . . . . . . . . 1 . . . . . . . . . . . Propulsion 4 | . . . 1 . . 1 . . . . . . 1 . . . . . . . . . 1 . . . . . . Utility 10 | . . . 1 . . 2 . . . . . . 1 . . . . 1 . . . . 1 . 2 . . 2 . Weapon 2 | . . . 1 . . 1 . . . . . . . . . . . . . . . . . . . . . . . Parts Attached 286 | 7 9 15 35 29 6 16 2 2 2 . 1 1 5 2 6 3 4 7 3 . 2 1 32 15 9 12 27 5 28 Power 20 | 1 2 1 10 3 . . . . . . . . . 2 . . 1 . . . . . . . . . . . . Engine 12 | 1 1 1 6 3 . . . . . . . . . . . . . . . . . . . . . . . . . Core 7 | . 1 . 4 . . . . . . . . . . 2 . . . . . . . . . . . . . . . Reactor 1 | . . . . . . . . . . . . . . . . . 1 . . . . . . . . . . . . Propulsion 19 | 2 . 1 9 4 3 . . . . . . . . . . . . . . . . . . . . . . . . Treads 17 | 2 . 1 7 4 3 . . . . . . . . . . . . . . . . . . . . . . . . Leg 2 | . . . 2 . . . . . . . . . . . . . . . . . . . . . . . . . . Wheel . | . . . . . . . . . . . . . . . . . . . . . . . . . . . . . . Hover . | . . . . . . . . . . . . . . . . . . . . . . . . . . . . . . Flight . | . . . . . . . . . . . . . . . . . . . . . . . . . . . . . . Utility 185 | 2 3 3 5 5 1 14 2 2 2 . 1 1 5 . 6 3 3 6 3 . 2 1 24 13 9 12 27 5 25 Device 111 | 1 1 . 2 1 1 8 . 1 1 . 1 . 2 . 4 3 3 3 3 . 1 1 16 7 5 10 19 3 14 Storage 18 | 1 2 1 . 2 . 3 1 . . . . . 1 . . . . 1 . . . . 1 1 1 1 1 . 1 Processor 35 | . . 1 . 1 . 1 1 1 1 . . . 1 . . . . 2 . . . . 4 4 3 1 5 2 7 Hackware 9 | . . . 1 1 . 1 . . . . . . . . 1 . . . . . . . 2 1 . . . . 2 Protection 12 | . . 1 2 . . 1 . . . . . 1 1 . 1 . . . . . 1 . 1 . . . 2 . 1 Artifact . | . . . . . . . . . . . . . . . . . . . . . . . . . . . . . . Weapon 62 | 2 4 10 11 17 2 2 . . . . . . . . . . . 1 . . . . 8 2 . . . . 3 Energy Gun 15 | . . 3 3 7 . . . . . . . . . . . . . . . . . . 1 . . . . . 1 Energy Cannon 13 | . 2 2 . . 1 2 . . . . . . . . . . . 1 . . . . 4 1 . . . . . Ballistic Gun 24 | 2 . 4 8 6 1 . . . . . . . . . . . . . . . . . 1 . . . . . 2 Ballistic Cannon 3 | . . . . 1 . . . . . . . . . . . . . . . . . . 2 . . . . . . Launcher 5 | . 1 1 . 2 . . . . . . . . . . . . . . . . . . . 1 . . . . . Special Weapon 2 | . 1 . . 1 . . . . . . . . . . . . . . . . . . . . . . . . . Impact Weapon . | . . . . . . . . . . . . . . . . . . . . . . . . . . . . . . Slashing Weapon . | . . . . . . . . . . . . . . . . . . . . . . . . . . . . . . Piercing Weapon . | . . . . . . . . . . . . . . . . . . . . . . . . . . . . . . Special Melee Weapon . | . . . . . . . . . . . . . . . . . . . . . . . . . . . . . . Unidentified Prototypes 61 | . . . 1 6 1 2 1 . . . . . 1 . 2 . 1 1 . . 3 . 8 6 1 4 15 . 8 Parts Lost 32 | . . 2 4 3 . . . . . . . . . 1 . . 6 2 . . . . 1 1 . 1 6 1 4 Power 5 | . . . 2 . . . . . . . . . . 1 . . 2 . . . . . . . . . . . . Propulsion 3 | . . 1 1 1 . . . . . . . . . . . . . . . . . . . . . . . . . Utility 20 | . . 1 . 2 . . . . . . . . . . . . 2 2 . . . . 1 1 . 1 6 1 3 Weapon 4 | . . . 1 . . . . . . . . . . . . . 2 . . . . . . . . . . . 1 Highest Loss Streak 6 | . . 1 2 1 . . . . . . . . . 1 . . 6 1 . . . . 1 1 . 1 2 1 2 To Critical Strikes . | . . . . . . . . . . . . . . . . . . . . . . . . . . . . . . Average Backups 17 | 3 11 15 17 18 17 14 14 18 18 19 17 18 18 17 19 20 19 18 14 15 15 16 19 18 16 17 19 22 18 Power 2 | . 1 1 1 2 2 1 3 5 5 6 4 4 3 2 1 2 1 2 1 2 1 1 . . . . 1 3 1 Propulsion . | . . . 3 3 2 . . . . . 1 2 . . . . . . . . . . . . . . . . . Utility 10 | 1 4 4 3 3 5 7 9 10 10 10 8 8 8 10 13 15 14 12 11 11 11 13 16 17 15 14 15 15 13 Weapon 3 | 1 5 7 7 8 6 4 2 2 2 3 3 4 6 5 4 3 3 3 2 1 . . . . . . . 4 2 Tool/Special . | . . . . . . . . . . . . . . . . . . . . . . . . . . . . . . Unused Backups 160 | 1 6 2 9 10 10 19 . 1 1 . 2 2 7 2 4 . . 9 4 1 3 . 24 . 4 3 6 . 30 Power 26 | . . 1 1 1 2 1 . 1 . . 2 . 1 2 . . . 5 1 . 1 . 1 . . . 1 . 5 Propulsion 22 | . . . 3 3 4 2 . . . . . 1 2 . . . . . 1 . . . 4 . . . . . 2 Utility 33 | 1 1 1 3 . . 1 . . 1 . . . 1 . . . . . . . 1 . 6 . 3 2 5 . 7 Weapon 76 | . 5 . 1 6 4 15 . . . . . 1 3 . 4 . . 4 2 1 1 . 12 . 1 . . . 16 Tool/Special 3 | . . . 1 . . . . . . . . . . . . . . . . . . . 1 . . 1 . . . Average Slot Usage (%) 60 | . 99 99 95 92 67 45 46 46 46 46 46 46 47 47 47 47 46 46 46 47 45 47 47 46 51 52 51 55 52 Engine 2 | . 7 4 2 12 12 5 2 . . . . . . . . . . . . . . . . . . . . . . Core 1 | . 6 9 12 . . . . . . . 4 6 . . 1 . . . . . . . . . . . . . . Reactor 2 | . . . . . . . 3 6 6 6 1 . 4 3 3 5 5 5 5 5 5 5 4 4 4 4 4 4 3 Treads 8 | . 27 28 25 26 14 3 2 2 6 6 5 6 1 . . . . . 3 . . 5 . . . . . . . Leg 1 | . . . . . . 1 2 . . . . . 2 5 5 5 5 3 1 4 4 . 1 . . 4 3 2 3 Device 14 | . 14 12 8 4 5 13 8 12 13 13 18 20 17 17 17 17 16 14 13 15 13 15 15 13 16 16 19 24 19 Storage 6 | . 14 14 9 9 9 6 10 6 6 6 6 6 5 5 5 5 5 5 5 5 5 5 4 4 4 4 4 4 4 Processor 7 | . . . . 3 . 3 5 6 6 6 1 . 5 5 5 5 5 9 10 10 10 10 12 14 17 17 11 15 15 Hackware 1 | . . . 8 9 7 1 . . . . . . . . . . . . . . . . . . . . . . . Energy Gun 1 | . . 3 6 12 3 . . . . . . . . . . . . . . . . . . . . . . . . Energy Cannon 3 | . 24 10 . . 2 2 . 4 6 6 6 6 5 . . . . 1 3 2 5 5 2 1 . . . 3 1 Ballistic Gun 3 | . 3 13 20 9 7 . . . . . . . . . . . . . . . . . . . . . . . . Ballistic Cannon 2 | . . . . 4 1 3 6 1 . . . . . 4 5 5 5 3 1 2 . . 1 2 3 3 4 . 2 Peak Build Rating 267 | 7 11 22 40 39 50 80 96 97 94 94 94 94 112 112 127 124 128 142 138 132 141 130 165 181 201 213 241 259 267 Average Rating 115 | 5 9 15 31 33 40 71 88 94 93 94 92 92 108 108 116 123 120 128 131 130 131 128 151 168 185 204 222 254 245 On Entrance 108 | . 7 11 22 31 38 48 79 96 93 94 94 94 93 112 105 123 123 107 130 130 132 128 130 165 171 193 211 238 256 Avg Prop Armor Cover (%) 7 | . . . 7 . . . . . . . . . . . . . . . . . . . . . . . . . . Naked Turns . | . . . . . . . . . . . . . . . . . . . . . . . . . . . . . . Heaviest Build 226 | 12 52 57 67 69 72 73 79 92 92 92 96 96 99 99 106 107 110 127 128 116 116 116 150 142 140 226 226 221 219 Greatest Support 320 | 40 40 40 63 63 60 70 70 157 157 157 157 137 211 155 155 155 155 155 199 215 215 215 236 291 298 298 298 267 320 Greatest Overweight (x) 3 | . 1 1 3 1 2 2 1 1 . . . . . . . . . 1 1 . . . . . . . . . 1 Average Overweight (x) . | . . 1 . . 1 1 . . . . . . . . . . . . . . . . . . . . . . . Largest Inventory Capacity 25 | 8 20 20 20 20 20 20 20 20 20 20 20 20 20 20 20 20 20 20 20 20 20 20 20 20 20 20 25 25 25 Average Capacity 20 | 7 16 20 20 20 20 17 17 20 20 20 20 20 20 20 20 20 20 20 20 20 20 20 20 20 20 20 23 25 25 Most Carried 25 | 6 15 20 20 20 20 20 18 20 20 20 20 20 20 20 20 20 20 20 17 16 17 18 20 20 20 20 25 25 25 Average Carried 18 | 3 11 18 19 19 18 15 15 19 19 20 18 19 19 18 19 20 19 18 14 15 15 16 19 19 19 19 22 23 20 Final Capacity 25 | 8 20 20 20 20 20 15 20 20 20 20 20 20 20 20 20 20 20 20 20 20 20 20 20 20 20 20 25 25 25 Final Carried 25 | 5 15 20 20 20 18 14 18 19 20 20 20 20 19 20 20 20 18 18 16 15 15 18 20 20 20 20 25 25 15 Scrap Engine Consumption 498 | . . . . . 51 52 18 16 2 3 7 6 23 21 15 . 6 13 13 6 10 4 64 20 11 29 27 3 78 Constructs Created 4 | . . . . . 3 . . . . . . . . . . . 1 . . . . . . . . . . . . Constructs Modified 221 | . . . . . 15 32 6 6 . . 5 . 14 9 4 . 2 11 6 2 3 2 27 10 7 11 6 3 40 Class Distribution -------------------- 44% | Construct 21% | Scavenger-Construct 10% | Mutant 7% | Gunner 7% | Commander-Construct 5% | Scavenger-Gunner Dominant Class ---------------- Mutant | -10/Materials Mutant | -10/Subcaves Scavenger-Gunner | -8/Materials Gunner | -8/Storage Construct | -8/Recycling Construct | -6/Factory Construct | -6/Waste Construct | -6/Factory Construct | -6/Lower Caves Construct | -6/Lower Caves Construct | -6/Data Miner Construct | -5/Proximity Caves Construct | -5/Factory Commander-Construct | -5/Extension Commander-Construct | -5/Cetus Commander-Construct | -5/Archives Construct | -5/Hub_04(d) Construct | -4/Factory Construct | -4/Upper Caves Construct | -4/Upper Caves Construct | -4/Zhirov Construct | -3/Proximity Caves Construct | -3/Research Construct | -3/Testing Scavenger-Construct | -2/Research Scavenger-Construct | -2/Quarantine Scavenger-Construct | -2/Protoforge Scavenger-Construct | -1/Access Scavenger-Construct | -1/Command Resources | -11 -10 -10 -8 -8 -8 -6 -6 -6 -6 -6 -6 -5 -5 -5 -5 -5 -5 -4 -4 -4 -4 -3 -3 -3 -2 -2 -2 -1 -1 ----------- Run | Yrd Mat Sub Mat Sto Rec Fac Was Fac Low Low Dat Pro Fac Ext Cet Arc Hub Fac Upp Upp Zhi Pro Res Tes Res Qua Frg Acc Com Matter Collected 42239 | 325 285 320 1402 1689 1258 1302 230 261 169 202 214 238 655 342 209 51 170 244 140 54 . 127 599 480 430 658 2928 2518 24739 Remotely 12219 | . . . . . . . . . . . . . . . . . . . . . . . . . . . . 1169 11050 Salvage Created 101466 | 307 749 372 1660 1853 1198 3406 2041 1786 861 631 433 713 2986 4227 878 549 2094 1421 1552 691 488 913 2851 1947 1313 948 8460 3246 50892 Parts 4256 | 26 45 16 86 90 83 146 54 54 17 16 10 30 119 194 56 38 81 65 29 4 8 44 104 107 66 111 505 157 1895 Haulers Intercepted 26 | . 2 . 5 6 . 1 . . . . . . 3 . . . 1 2 . . . . 3 1 1 . . 1 . Recyclers Shooed 9 | 1 . . . 1 . . . . . . . . 1 3 . . . . . . . . . . . . . 1 2 Parts Field Recycled . | . . . . . . . . . . . . . . . . . . . . . . . . . . . . . . Retrieved Matter . | . . . . . . . . . . . . . . . . . . . . . . . . . . . . . . Parts Self-Destructed 74 | . . 4 . . . . . . 18 4 . 6 . . . . . . 10 . 1 31 . . . . . . . Prevented 67 | . . . . . . . . . 10 11 . 24 . . . . . . 18 3 . 1 . . . . . . . Parts Restored 2 | . . . . . . . . . . . . . . . . . . . . . . . . . . . 2 . . Faulty 2 | . . . . . . . . . . . . . . . . . . . . . . . . . . . 2 . . Kills | -11 -10 -10 -8 -8 -8 -6 -6 -6 -6 -6 -6 -5 -5 -5 -5 -5 -5 -4 -4 -4 -4 -3 -3 -3 -2 -2 -2 -1 -1 ------- Run | Yrd Mat Sub Mat Sto Rec Fac Was Fac Low Low Dat Pro Fac Ext Cet Arc Hub Fac Upp Upp Zhi Pro Res Tes Res Qua Frg Acc Com Combat Hostiles Destroyed 1085 | . 17 9 25 32 13 50 6 13 9 12 4 11 28 30 5 4 20 10 22 8 . 13 28 18 14 12 92 32 548 Melee 3 | . . . . . . 1 . . . . . . . . . . . . . . . . . . . . 1 . 1 Guns 68 | . 1 4 25 29 9 . . . . . . . . . . . . . . . . . . . . . . . . Cannons 932 | . 14 2 . 3 4 39 6 9 3 10 . 8 15 30 5 4 13 7 16 7 . 13 23 15 14 12 91 32 537 AOE 21 | . 2 2 . . . 10 . . . . . . 1 . . . 6 . . . . . . . . . . . . Classes Destroyed 36 | 3 5 2 5 1 2 2 1 2 1 . . 2 . . . . . . . . . 1 3 2 . . 3 . 1 Worker 56 | 2 2 . 6 3 . 5 . . . . . . 2 . . . 4 2 . . . . 2 3 . . 2 4 19 Builder 20 | . . . 1 3 . 2 . 2 . . . . 2 1 . . 2 3 . . . . . 1 . . 1 2 . Tunneler 18 | 9 . . 2 . 1 2 . 1 . . . . 1 . . . . 1 . . . . 1 . . . . . . Hauler 26 | . 2 . 5 6 . 1 . . . . . . 3 . . . 1 2 . . . . 3 1 1 . . 1 . Recycler 46 | 1 . . 2 1 1 4 . 4 . . . . 5 10 . . 2 2 . . . . . 1 1 . . 4 8 Carrier 9 | . . . . . . . . 1 . . . . . . . . . . . . . . . . . . . 1 7 Minesweeper 1 | . . . . . . . . . . . . 1 . . . . . . . . . . . . . . . . . Mechanic 17 | . . . 2 2 . . . . . . . . . . . . . . . . . . . . 1 . . 1 11 Operator 13 | . 2 . . 1 . . . . . . . . . 2 . 4 . . . . . . 1 2 . . . . 1 Drone 10 | . . . . . . . . . . . . 2 . . . . . . . . . . . . . . 4 2 2 Watcher 30 | . 3 . 2 2 . . . . . . . . 2 . 1 . . 2 . . . . 2 2 . . 3 3 8 Swarmer 116 | . 5 . 3 4 . 6 . 1 . 8 . 1 5 . . . 5 . 5 . . 3 . . 4 . . 16 50 Cutter 12 | . . . . . . . . . . . . . . . . . . . . . . . . . . . . . 12 Saboteur 22 | . . . . . . 1 . . . . . . . . . . . . . . . . . . . . 1 . 20 Grunt 346 | . 12 1 12 19 5 30 . 3 7 3 . 4 12 16 . . 6 3 6 3 . 5 16 2 3 . 16 2 160 Brawler 54 | . . . 1 . . 1 . 2 . . . . 1 . . . 3 . 3 1 . . . . . . 5 . 37 Duelist 51 | . . . . 1 . 1 . 1 . . . . 1 1 . . . . 1 . . . 1 . 1 . 4 . 39 Protector 22 | . . . . . . . . . . . . . . . . . . . . . . . . . . . . . 22 Researcher 2 | . . . . . . . . . . . . . . . . . . . . . . . . 1 . . 1 . . Sentry 74 | . . 1 6 8 2 2 . 2 1 . . 1 3 10 . 4 5 2 2 . . . 3 . 2 . 14 . 6 Demolisher 13 | . . . . . 1 . . . . . . . . . . . . . . . . . . . . . . . 12 Specialist 28 | . . . 2 . . 2 . . . . . . . . . . . . . . . . . . . . . . 24 Hunter 88 | . . . 1 . 2 3 . . . . . 2 . . . . 1 2 4 2 . 1 . 2 . . 7 5 56 Programmer 112 | . . . . . 1 3 . 2 1 1 . . 6 . . . . 3 . . . . . 10 4 . 11 5 65 Heavy 4 | . . . . . . 1 . 1 . . . . . . . . . . . . . . . . . . . 1 1 Behemoth 12 | . . . . . . . . 1 . . . 1 . 1 . . . . 1 . . . 2 . . . 1 1 4 Compactor 6 | . . . . . . . 6 . . . . . . . . . . . . . . . . . . . . . . Cetus Guard 5 | . . . . . . . . . . . . . . . 5 . . . . . . . . . . . . . . Quarantine Guard 11 | . . . . . . . . . . . . . . . . . . . . . . . . . . 11 . . . M Guard 2 | . . . . . . . . . . . . . . . . . . . . . . . . . . . . . 2 Enhanced Grunt 5 | . . . . . . . . . . . 4 . . . . . 1 . . . . . . . . . . . . Hotshot 8 | . . . . . . . . . . . . . . . . . . . . . . . . . . . 8 . . Decapitator 10 | . . . . . . . . . . . . . . . . . . . . . . . . . . . 10 . . Immortal 2 | . . . . . . . . . . . . . . . . . . . . . . . . . . . 2 . . Combat Programmer 2 | . . . . . . . . . . . . . . . . . . . . . . . . . . . . . 2 Investigator 2 | . . . . . . . . . . . . . . . . . . . . . . . . . . . . . 2 Striker 18 | . . . . . . . . . . . . . . . . . . . . . . . 4 2 . . . . 12 Executioner 19 | . . . . . . . . . . . . . . . . . . . . . . . 1 . . . . . 18 Alpha 7 6 | . . . . . . . . . . . . . . . . . . . . . . . . 1 . 1 2 . 2 V-Series 7 | . . . . . . . . . . . . . . . . . . . . . . . . . . . 7 . . Protovariant H 1 | . . . . . . . . . . . . . . . . . . . . . . . . 1 . . . . . Subdweller 9 | . . 7 . . 2 . . . . . . . . . . . . . . . . . . . . . . . . Decomposer 2 | . . . . . . . . . 2 . . . . . . . . . . . . . . . . . . . . Samaritan 5 | . . . . . . . . . 3 1 . . . . . . . . . 1 . . . . . . . . . Tinkerer 1 | . . . . . . . . . . . . . . . . . . . . . . . . . . . 1 . . Wasp 3 | . . . . . . . . . . . . . . . . . . . . 3 . . . . . . . . . Thug 10 | . . . . . . . . 2 . 1 . . . 3 2 . 1 . . . . 1 . . . . . . . Savage 5 | . . . . . . . . . . . . . . 1 2 . . . . . . 2 . . . . . . . Butcher 5 | . . . . . . . . . . . . . . 4 1 . . . . . . . . . . . . . . Martyr 2 | . . . . . . . 2 . . . . . . . . . . . . . . . . . . . . . . Mutant 1 | . . . . . . . . . . . . . . . . . . . . . . 1 . . . . . . . Revision 1 | . . . . . . . . . . . . . . . . . . . . . . . 1 . . . . . . Best Kill Streak 81 | 6 4 4 7 7 2 11 2 3 5 3 1 3 5 6 4 8 8 5 7 5 . 6 5 11 6 2 14 27 81 Combat Bots Only 78 | . 3 4 3 7 2 6 2 3 5 3 1 3 5 4 3 4 7 4 7 5 . 6 4 5 5 2 13 19 78 Max Kills in Single Turn 7 | 1 1 1 2 2 1 7 1 1 1 1 1 1 3 2 2 2 5 3 1 1 . 1 2 2 1 1 2 3 6 Gunslinging 1 | . . . . 1 . . . . . . . . . . . . . . . . . . . . . . . . . Exploded 5 | . 1 1 . . . 4 . . . . . . 1 . . . 5 . . . . . . . . . . . . Melee 1 | . . . . . . 1 . . . . . . . . . . . . . . . . . . . . 1 . 1 Uniques/NPCs Destroyed 6 | . . . . . . . . . . . . . . . 1 . . . . . . . . . . . . . 5 A7 (-5/Cetus) MAIN.C Shell (-1/Command) Svarog (-1/Command) Zhirov (-1/Command) Perun (-1/Command) MAIN.C (-1/Command) Combat | -11 -10 -10 -8 -8 -8 -6 -6 -6 -6 -6 -6 -5 -5 -5 -5 -5 -5 -4 -4 -4 -4 -3 -3 -3 -2 -2 -2 -1 -1 -------- Run | Yrd Mat Sub Mat Sto Rec Fac Was Fac Low Low Dat Pro Fac Ext Cet Arc Hub Fac Upp Upp Zhi Pro Res Tes Res Qua Frg Acc Com Hostile Shots Fired 3387 | . 45 58 118 123 25 159 . 42 26 29 8 29 127 111 9 4 207 96 48 9 . 29 77 99 53 31 312 94 1419 Missed 1074 | . 16 22 35 34 4 47 . 17 6 13 2 10 41 35 1 1 52 32 16 5 . 9 29 31 17 8 82 35 474 Intercepted 40 | . . . . . . . . . . . . . . . . . . . . . . . . . . . 26 . 14 Hits 2313 | . 29 36 83 89 21 112 . 25 20 16 6 19 86 76 8 3 155 64 32 4 . 20 48 68 36 23 230 59 945 Melee 52 | . . . . 1 . 2 . . . . . . 2 . . . 1 . . . . . 3 1 2 . 15 . 25 Projectile 2261 | . 29 36 83 88 21 110 . 25 20 16 6 19 84 76 8 3 154 64 32 4 . 20 45 67 34 23 215 59 920 AOE 34 | . . . . . 5 . . . . . . . . . . . 1 . . . . . . . . . 18 . 10 Critical Strikes 135 | . . . 3 5 2 6 . . 1 1 . 2 8 1 . . 26 4 . 1 . . 1 8 1 2 18 4 41 Part Disruptions 1 | . . . . . . . . . . . . . 1 . . . . . . . . . . . . . . . . Damage Taken 40034 | . 334 790 1276 1468 459 2086 . 282 384 267 136 221 988 1395 166 104 4674 1162 550 82 61 411 1036 1680 940 718 3386 653 14325 Core 3626 | . 29 117 119 117 90 284 . 63 93 30 21 29 117 143 . . 445 98 73 . . 45 119 47 44 78 177 115 1133 Absorbed by Shields 15651 | . . . . . . . . . . . 140 168 764 283 65 . 246 58 . . . . 312 97 . 174 3182 661 9501 Redirected to Shielding 139 | . . . . . . . . . . . . . . . . . . . . . . . . . . . 139 . . Ignored by Resistances 1288 | . . . . . . . . . . . . . . . . . . . . . . . . . . . 86 38 1164 Regen/Repaired (Parts) 25868 | . 197 . . 280 . 1097 226 292 15 . 270 . 843 658 651 . 669 1554 1060 145 61 152 902 1152 1647 420 2824 534 10219 Core Remaining (%) 56 | 100 . 41 . . 40 . . . . . . 38 . . . . 29 . . . . 81 . 87 . . 72 . 19 Volleys Fired 2819 | 26 57 51 105 163 106 100 53 49 29 36 32 43 107 116 39 22 53 40 46 33 10 49 125 99 57 76 332 77 688 Largest 3 | 2 2 2 3 3 3 1 1 1 1 1 1 1 1 1 1 1 1 1 1 1 1 1 1 1 1 1 1 1 1 Hottest 340 | 40 120 140 135 147 143 146 60 72 72 72 72 72 208 208 122 122 122 90 90 90 90 90 184 207 255 340 72 112 120 Shots Fired 3380 | 52 109 85 312 398 142 100 52 49 29 35 32 43 107 113 39 22 53 39 45 33 10 49 125 99 56 76 328 77 671 Gun 807 | 52 26 39 312 316 62 . . . . . . . . . . . . . . . . . . . . . . . . Cannon 2488 | . 78 34 . 80 17 97 52 49 29 35 32 43 107 113 39 22 53 39 45 33 10 49 125 99 56 76 328 77 671 Launcher 10 | . 2 3 . 2 . 3 . . . . . . . . . . . . . . . . . . . . . . . Special 75 | . 3 9 . . 63 . . . . . . . . . . . . . . . . . . . . . . . . Kinetic 2260 | 52 26 3 258 262 57 46 . 9 . . . . 1 113 39 22 53 30 12 . . . 42 63 45 71 328 77 651 Thermal 696 | . 81 82 54 131 68 51 52 4 . . . . . . . . . . . 19 10 49 58 1 11 5 . . 20 Explosive 5 | . 2 . . . . 3 . . . . . . . . . . . . . . . . . . . . . . . Electromagnetic 419 | . . . . 5 17 . . 36 29 35 32 43 106 . . . . 9 33 14 . . 25 35 . . . . . Robot Hit Streak 44 | 8 13 19 11 10 10 12 10 10 6 6 5 4 6 10 7 7 11 9 11 7 10 6 11 8 9 9 29 10 44 Robot Miss Streak 11 | 2 3 1 5 9 4 4 3 3 4 5 3 11 5 9 7 5 5 3 3 2 1 3 5 3 4 1 4 3 6 Penetration Max 3 | . . . . . . . . . . . . . . 1 1 . 1 1 . . . . . 1 1 . . 2 3 Secondary Targets 7 | . . . 3 4 . . . . . . . . . . . . . . . . . . . . . . . . . Max Gunslinging Chain 1 | . . . 1 1 . . . . . . . . . . . . . . . . . . . . . . . . . Capacitor 321 | . . . . . . . . . . . . . . . . . . . . . . . . . . . . . 321 Shots Hit Robots 2129 | 31 60 54 185 213 92 75 47 38 20 23 12 20 75 82 28 16 31 23 29 14 9 21 64 47 35 18 185 41 541 Core Hits 1362 | 15 29 12 83 74 45 104 16 17 11 8 5 11 39 51 17 9 37 19 11 7 3 10 26 25 11 13 78 24 552 Critical Kills 141 | . 1 3 . 2 . . . 1 . . . . 1 . . 1 . . . . . . 1 2 . . . 1 128 Critical Parts Destroyed 140 | 1 . . . . . . . 1 . . . . 1 . . . . . . . . . . 1 3 . . . 133 Critical Strikes 315 | 1 1 3 3 9 . . 2 2 . . . . 2 . . 2 . . . . . . 1 3 4 3 2 1 276 Burn 10 | . . . 3 7 . . . . . . . . . . . . . . . . . . . . . . . . . Meltdown 12 | . 1 1 . . . . . . . . . . . . . . . . . . . . . . . . . 1 9 Destroy 288 | 1 . 2 . 2 . . 2 2 . . . . 2 . . 2 . . . . . . 1 3 4 . . . 267 Blast 5 | . . . . . . . . . . . . . . . . . . . . . . . . . . 3 2 . . Melee Attacks . | . . . . . . . . . . . . . . . . . . . . . . . . . . . . . . Impact . | . . . . . . . . . . . . . . . . . . . . . . . . . . . . . . Slashing . | . . . . . . . . . . . . . . . . . . . . . . . . . . . . . . Piercing . | . . . . . . . . . . . . . . . . . . . . . . . . . . . . . . Sneak Attacks . | . . . . . . . . . . . . . . . . . . . . . . . . . . . . . . Combat Hostiles . | . . . . . . . . . . . . . . . . . . . . . . . . . . . . . . Follow-up Attacks . | . . . . . . . . . . . . . . . . . . . . . . . . . . . . . . Damage Inflicted 349427 | 342 1099 1264 3486 4348 1341 8521 5246 3298 1862 1346 665 1430 5203 10475 3901 1994 5459 2644 4103 2264 1404 2820 9611 6100 4143 3536 43172 15406 192944 Guns 8558 | 342 213 676 3338 3449 540 . . . . . . . . . . . . . . . . . . . . . . . . Cannons 336003 | . 749 374 . 844 438 6722 5246 3269 1862 1346 665 1430 4992 10475 3901 1994 4378 2474 4103 2264 1171 2761 9611 5894 4143 3536 43054 15363 192944 Explosions 4180 | . 111 214 . . . 1794 . . . . . . 211 . . . 1081 153 . . 233 59 . 206 . . 118 . . Melee . | . . . . . . . . . . . . . . . . . . . . . . . . . . . . . . Ramming 323 | . 26 . 148 55 . 5 . 29 . . . . . . . . . 17 . . . . . . . . . 43 . Kinetic 298520 | 342 213 214 2586 2763 622 3270 . 598 . . . . . 10475 3901 1994 4378 1641 879 . . . 2865 4381 3518 3536 43054 15363 191927 Thermal 24492 | . 749 1050 752 1530 418 3506 5246 69 . . . . 211 . . . 99 153 . 484 1404 2820 4153 206 625 . . . 1017 Explosive 1916 | . 111 . . . . 1687 . . . . . . . . . . . . . . . . . . . . 118 . . Electromagnetic 24176 | . . . . . 301 53 . 2602 1862 1346 665 1430 4992 . . . 982 833 3224 1780 . . 2593 1513 . . . . . Impact . | . . . . . . . . . . . . . . . . . . . . . . . . . . . . . . Slashing . | . . . . . . . . . . . . . . . . . . . . . . . . . . . . . . Piercing . | . . . . . . . . . . . . . . . . . . . . . . . . . . . . . . Highest Corruption 53 | . . . 2 3 3 1 1 2 2 4 4 4 12 12 12 12 53 11 11 11 11 11 . 14 3 3 36 . 34 Average Corruption 7 | . . . 2 2 3 1 1 1 2 3 4 4 6 12 12 8 10 4 11 11 11 11 . 5 2 3 15 . 15 Corruption Purged 46 | . . . . . . . . . . . . . . . . 12 . . . . . . . . . . . . 34 Corruption Blocked . | . . . . . . . . . . . . . . . . . . . . . . . . . . . . . . Effects 859 | . . . 23 53 60 4 11 18 22 30 24 35 26 45 20 5 6 15 49 36 20 30 . 17 6 34 64 . 206 Message Errors 222 | . . . 4 9 14 1 1 6 9 10 7 9 8 11 8 1 1 3 14 8 7 7 . 5 1 8 14 . 56 Matter Fused 212 | . . . 7 12 15 2 3 6 5 10 6 9 9 13 5 1 2 4 8 8 4 6 . 5 2 14 14 . 42 Heat Flow Errors 102 | . . . 3 10 4 . 1 2 2 2 2 6 3 5 3 2 . 3 8 1 3 7 . 2 1 5 5 . 22 Energy Discharges 95 | . . . 3 6 11 . 2 . . 2 2 4 3 6 2 . . 1 5 7 1 4 . . . 3 11 . 22 Parts Rejected 9 | . . . 1 . . . . 2 . . . . . . . . . 1 . . . . . 1 . . 3 . 1 Parts Fused 9 | . . . . . 1 . . . 1 . . . . 1 . . . . 1 . 1 1 . . . 1 . . 2 Data Loss (minor) 104 | . . . 1 8 6 . 1 1 3 2 6 6 1 1 1 . 3 1 9 6 3 2 . 4 1 2 7 . 29 Data Loss (major) 33 | . . . 2 . 3 1 1 . 1 3 1 1 1 3 . . . . 3 3 . 1 . . . 1 2 . 6 Misfires 5 | . . . . 2 3 . . . . . . . . . . . . . . . . . . . . . . . . Alerts 29 | . . . 2 2 3 . 1 1 1 . . . 1 2 . 1 . 1 . 3 1 2 . . . . . . 8 Misdirections 6 | . . . . . . . . . . . . . . . 1 . . . . . . . . . . . 4 . 1 Weapon Failures 33 | . . . . 4 . . 1 . . 1 . . . 3 . . . 1 1 . . . . . 1 . 4 . 17 Overload Shots . | . . . . . . . . . . . . . . . . . . . . . . . . . . . . . . Overflow Damage 68475 | . 13 . . 54 28 621 36 466 120 191 16 66 721 1147 56 159 495 266 870 571 481 526 1485 1110 1282 27 7233 5739 44696 Projectiles 68182 | . . . . 54 28 594 36 466 120 191 16 66 675 1147 56 159 464 266 870 571 385 526 1485 1053 1282 27 7233 5716 44696 Explosions 270 | . 13 . . . . 27 . . . . . . 46 . . . 31 . . . 96 . . 57 . . . . . Melee 23 | . . . . . . . . . . . . . . . . . . . . . . . . . . . . 23 . Knockbacks 391 | . . . 2 6 2 18 . 6 . . . . . 32 10 3 6 7 3 . . . 9 16 10 1 53 9 198 Impact 3 | . . . 2 . . . . . . . . . . . . . . . . . . . . . . . . 1 . Kinetic 321 | . . . . 6 2 16 . 4 . . . . . 26 7 2 4 7 3 . . . 9 15 10 1 47 5 157 Secondary 67 | . . . . . . 2 . 2 . . . . . 6 3 1 2 . . . . . . 1 . . 6 3 41 Self-Inflicted Damage 618 | . . . . 82 . 173 . 8 . . . . . . . . 225 69 . . 61 . . . . . . . . Shots 16 | . . . . 2 . 9 . . . . . . . . . . 3 1 . . 1 . . . . . . . . Rammed 28 | . 6 . 14 6 . . . 2 . . . . . . . . . . . . . . . . . . . . . Targets Rammed 37 | . 6 . 16 9 . 2 . 2 . . . . . . . . . 1 . . . . . . . . . 1 . Kicked 5 | . . . 1 . . 2 . . . . . . . . . . . 1 . . . . . . . . . 1 . Crushed 4 | . . . 1 3 . . . . . . . . . . . . . . . . . . . . . . . . . Highest Temperature 585 | . 345 220 450 585 276 332 228 266 312 264 160 244 503 533 448 304 403 219 256 214 238 283 440 390 420 408 202 223 223 Average Temperature 98 | . 98 58 93 118 74 71 77 63 88 60 56 82 119 146 138 115 122 64 41 16 64 70 116 137 131 108 61 118 90 Received Heat Transfer 4948 | . 150 132 576 693 66 705 . 42 153 72 . 51 77 305 18 . 277 112 39 27 . 12 158 84 36 17 154 35 957 Thermoelectric Energy+ 2860 | . . . . . . . . . . . . . . . . . . . . . . . . . . . . 713 2147 Effects 52 | . 4 . 4 9 . . . 1 2 . . . 9 8 . . . . . . . . 2 6 1 . . 2 4 Shutdowns 8 | . . . 1 2 . . . . . . . . 2 2 . . . . . . . . 1 . . . . . . Energy Bleed 13 | . 1 . 2 2 . . . . . . . . 1 2 . . . . . . . . 1 3 . . . 1 . Interference 22 | . 3 . . 1 . . . 1 2 . . . 6 2 . . . . . . . . . 2 . . . 1 4 Matter Decay 3 | . . . . 1 . . . . . . . . . 1 . . . . . . . . . . 1 . . . . Short Circuit 2 | . . . . 1 . . . . . . . . . . . . . . . . . . . 1 . . . . . Damage (minor) 2 | . . . 1 . . . . . . . . . . 1 . . . . . . . . . . . . . . . Damage (major) 2 | . . . . 2 . . . . . . . . . . . . . . . . . . . . . . . . . Siege Activations 1 | . . . . . . . 1 . . . . . . . . . . . . . . . . . . . . . . Total Turns 3 | . . . . . . . 3 . . . . . . . . . . . . . . . . . . . . . . Longest Duration 3 | . . . . . . . 3 . . . . . . . . . . . . . . . . . . . . . . Martial Activations . | . . . . . . . . . . . . . . . . . . . . . . . . . . . . . . Shielding Activations . | . . . . . . . . . . . . . . . . . . . . . . . . . . . . . . Robots Disrupted 2 | . . . . . 1 1 . . . . . . . . . . . . . . . . . . . . . . . Combat Hostiles 2 | . . . . . 1 1 . . . . . . . . . . . . . . . . . . . . . . . Robots Corrupted 59 | . . . . . . . . 7 6 2 4 3 12 . 1 1 1 3 6 1 . . 4 3 . . . 1 4 Combat Hostiles 51 | . . . . . . . . 4 6 2 4 3 12 . . . 1 3 6 1 . . 4 3 . . . . 2 Parts Fried 313 | . . . . . . 1 . 32 24 18 15 15 58 . 1 2 6 12 35 14 . . 18 29 . . . 5 28 Impact Corruptions 63 | . . . . . . . . . . . . . . . 1 1 2 . . . . . . 2 . . 3 9 45 Robots Melted 13 | . 1 1 . . . . . . . . . . . . . . . . . . . . 1 . . . . 1 9 Combat Hostiles 10 | . . 1 . . . . . . . . . . . . . . . . . . . . 1 . . . . . 8 Parts Melted 55 | . 1 5 1 6 1 9 8 1 . . . . . 3 . . . . . . . . 5 . . . . 4 11 Heat Transferred 17362 | . 1591 1454 1628 3293 1349 2347 4050 50 . . . . 200 . . . 25 100 . . 150 50 592 150 185 . . . 148 Parts Sabotaged 12 | . . . . . . 1 . . . . . . . . . . 1 . . . . . . . . . 2 . 8 Parts Stolen . | . . . . . . . . . . . . . . . . . . . . . . . . . . . . . . Parts Stripped . | . . . . . . . . . . . . . . . . . . . . . . . . . . . . . . Power Chain Reactions 4 | . . . . . . . . . . . . . . . . . 1 . . . 1 1 . 1 . . . . . Alert | -11 -10 -10 -8 -8 -8 -6 -6 -6 -6 -6 -6 -5 -5 -5 -5 -5 -5 -4 -4 -4 -4 -3 -3 -3 -2 -2 -2 -1 -1 ------- Run | Yrd Mat Sub Mat Sto Rec Fac Was Fac Low Low Dat Pro Fac Ext Cet Arc Hub Fac Upp Upp Zhi Pro Res Tes Res Qua Frg Acc Com Maximum Alert Level 5 | . 1 . 1 2 1 5 2 4 . . . . 3 4 3 2 4 3 . . . . 2 3 2 2 5 5 5 Low Security (%) 30 | 100 85 . 85 49 88 . 33 21 . . . . . . . 50 24 . . . . . 20 . . . . . . Level 1 19 | . 14 . 14 20 11 25 36 8 . . . . . 9 . 27 23 . . . . . 77 43 69 63 10 . . Level 2 15 | . . . . 29 . 20 30 10 . . . . 46 64 . 21 33 6 . . . . 2 55 30 36 20 . . Level 3 8 | . . . . . . 10 . 47 . . . . 53 8 100 . 12 93 . . . . . . . . 12 . . Level 4 3 | . . . . . . 34 . 12 . . . . . 16 . . 5 . . . . . . . . . 11 . . Level 5 6 | . . . . . . 9 . . . . . . . . . . . . . . . . . . . . 44 31 20 High Security 15 | . . . . . . . . . . . . . . . . . . . . . . . . . . . . 68 79 Max Security . | . . . . . . . . . . . . . . . . . . . . . . . . . . . . . . Peak Influence 17507 | 15 251 . 332 694 283 1748 606 1151 . . . . 1049 1387 993 580 1541 1012 . . . . 455 702 699 439 2712 2871 17507 Initial 1836 | . . . . 64 269 515 606 57 . . . . 450 507 767 369 . 741 . . . . . 253 384 388 246 1623 1836 Average 1952 | 3 117 . 97 237 61 901 303 685 . . . . 715 661 900 228 454 844 . . . . 243 408 413 385 1446 2361 9995 Influence Increases 39477 | 60 592 40 920 1204 536 2310 18 1752 344 300 . 240 1647 1838 426 281 1931 584 505 132 15 180 1048 834 561 749 3103 1338 15989 Destroy 0b10 Robot/C 21740 | . 340 40 500 640 220 1000 . 680 260 240 . 180 560 820 160 80 540 200 440 100 . 180 560 380 280 240 1820 620 10660 Destroy 0b10 Robot/NC 1405 | 60 45 . 100 90 55 70 . 45 . . . 15 75 75 10 20 60 60 . . 15 . 45 50 15 . 60 75 365 Destroy Leader 2674 | . 80 . 144 176 . 192 . 184 30 40 . 30 110 72 . . 146 58 50 20 . . 130 66 62 110 206 128 640 Allied During Kill 1725 | . . . . . . . . 661 39 5 . . . 516 170 100 220 . . 12 . . . . . . . 2 . Successful Hack 417 | . 41 . 32 17 44 18 . 3 . . . . 30 55 . . 5 8 . . . . 82 8 24 38 12 . . Select Force Hacks 330 | . 60 . . 60 210 . . . . . . . . . . . . . . . . . . . . . . . . Disable Machine 2250 | . . . 30 165 . 270 . 60 . . . . 225 75 30 45 345 90 . . . . 45 120 30 135 270 120 195 Anti-Garrison Action 200 | . . . . . . 150 . . . . . . . . . . . . . . . . . . . . . . 50 Destroy Structure 5406 | . 11 . 9 41 7 195 18 29 . . . . 182 210 56 36 570 138 . . . . 126 110 135 81 675 303 2474 Advance Influence 850 | . . . . . . 400 . . . . . . 450 . . . . . . . . . . . . . . . . Partial Spotted 90 | . . . . . . . . . . . . . 15 . . . . . . . . . 15 . . 30 30 . . Lose Combat Pursuer 1890 | . 15 . 105 15 . 15 . 90 15 15 . 15 . 15 . . 45 30 15 . . . 45 . 15 15 30 90 1305 Active Sensor Use 300 | . . . . . . . . . . . . . . . . . . . . . . . . . . . . . 300 Miscellaneous 200 | . . . . . . . . . . . . . . . . . . . . . . . . 100 . 100 . . . Influence Decreases 21732 | 60 482 150 767 665 953 852 1669 699 1026 605 148 240 610 1504 874 1204 418 1142 876 500 231 180 597 600 555 1001 836 1173 1115 Entered New Map 8789 | . . 54 . 89 423 160 1127 25 421 87 148 . . 530 604 554 . 772 354 112 216 . . 198 301 303 193 1083 1035 Time Decay 10984 | 60 482 96 538 396 530 592 542 464 595 518 . 240 510 474 230 610 198 350 522 368 15 180 587 392 254 538 583 80 40 Search Patrol Dispatched 200 | . . . . . . 100 . . . . . . 100 . . . . . . . . . . . . . . . . Lost Part 300 | . . . 40 30 . . . . . . . . . 10 . . 60 20 . . . . 10 10 . 10 60 10 40 Lost Ally 520 | . . . . . . . . 210 10 . . . . 40 40 40 160 . . 20 . . . . . . . . . Purge Threat 939 | . . . 189 150 . . . . . . . . . 450 . . . . . . . . . . . 150 . . . Squads Dispatched 1136 | . 5 . 7 6 . 13 . 9 . . . . 7 3 . . 7 6 . . . . 9 4 3 1 13 16 1027 Investigation 1011 | . 4 . 1 2 . 2 . 3 . . . . . 1 . . . . . . . . 4 . 1 1 2 . 990 Extermination 21 | . . . . . . 2 . 2 . . . . 3 . . . 1 2 . . . . . 3 2 . 5 1 . Reinforcement 28 | . 1 . 3 4 . 3 . 2 . . . . 1 . . . 3 3 . . . . 5 1 . . . 1 1 Assault 69 | . . . . . . 5 . 2 . . . . 2 2 . . 1 1 . . . . . . . . 6 14 36 Garrison 7 | . . . 3 . . 1 . . . . . . 1 . . . 2 . . . . . . . . . . . . Intercept . | . . . . . . . . . . . . . . . . . . . . . . . . . . . . . . Searches Triggered 2 | . . . . . . 1 . . . . . . 1 . . . . . . . . . . . . . . . . Unchained Authorized 2 | . . . . . . . . . . . . . . . . . . 1 . . . . . . 1 . . . . Construction Impeded 8 | . . . 1 2 . 1 . 1 . . . . . . . . . 1 . . . . 1 1 . . . . . Haulers Reinforced 4 | . . . . . . 1 . . . . . . . . . . . 1 . . . . 2 . . . . . . Active Scanning Responses 3 | . . . . . . . . . . . . . . . . . . . . . . . . . . . . . 3 Cargo Convoy Interrupts . | . . . . . . . . . . . . . . . . . . . . . . . . . . . . . . Stealth | -11 -10 -10 -8 -8 -8 -6 -6 -6 -6 -6 -6 -5 -5 -5 -5 -5 -5 -4 -4 -4 -4 -3 -3 -3 -2 -2 -2 -1 -1 --------- Run | Yrd Mat Sub Mat Sto Rec Fac Was Fac Low Low Dat Pro Fac Ext Cet Arc Hub Fac Upp Upp Zhi Pro Res Tes Res Qua Frg Acc Com Distress Signals 28 | . 2 . 5 3 1 2 . . . . . 1 . 1 1 . 1 1 . . . . 2 . . . . 2 6 Communications Jammed 8 | . . . . . . . . . . . . . . . . . . . . . . . . . 1 . . 7 . Distress Signals 7 | . . . . . . . . . . . . . . . . . . . . . . . . . . . . 7 . Times Spotted 1201 | . 23 8 52 49 10 62 6 26 11 10 4 13 32 46 9 9 49 21 20 12 . 10 30 21 18 9 95 37 509 Peak Tracking Total 75 | . 3 3 5 7 2 6 2 4 7 4 1 3 5 5 5 1 15 8 7 5 . 4 5 4 4 3 8 8 75 Tactical Retreats 48 | . 1 . 5 1 . 1 . 4 1 1 . 1 . 1 . . 3 1 1 . . . 3 . 1 1 2 3 17 Traps | -11 -10 -10 -8 -8 -8 -6 -6 -6 -6 -6 -6 -5 -5 -5 -5 -5 -5 -4 -4 -4 -4 -3 -3 -3 -2 -2 -2 -1 -1 ------- Run | Yrd Mat Sub Mat Sto Rec Fac Was Fac Low Low Dat Pro Fac Ext Cet Arc Hub Fac Upp Upp Zhi Pro Res Tes Res Qua Frg Acc Com Traps Triggered 39 | . 1 . . 1 . 4 . . . . . . 1 2 . . 3 1 . . . . 3 2 2 . 11 . 8 Indirectly 1 | . . . . . . 1 . . . . . . . . . . . . . . . . . . . . . . . Trap Hack Attempts . | . . . . . . . . . . . . . . . . . . . . . . . . . . . . . . Triggered . | . . . . . . . . . . . . . . . . . . . . . . . . . . . . . . Disarmed . | . . . . . . . . . . . . . . . . . . . . . . . . . . . . . . Reprogrammed 7 | . 7 . . . . . . . . . . . . . . . . . . . . . . . . . . . . Reused . | . . . . . . . . . . . . . . . . . . . . . . . . . . . . . . Traps Extracted . | . . . . . . . . . . . . . . . . . . . . . . . . . . . . . . Installed . | . . . . . . . . . . . . . . . . . . . . . . . . . . . . . . Triggered . | . . . . . . . . . . . . . . . . . . . . . . . . . . . . . . Time Bombs Activated 1 | . . . . . . . . . . . . . . . . . . . . . . . . . . . . . 1 Exploded 1 | . . . . . . . . . . . . . . . . . . . . . . . . . . . . . 1 Machines | -11 -10 -10 -8 -8 -8 -6 -6 -6 -6 -6 -6 -5 -5 -5 -5 -5 -5 -4 -4 -4 -4 -3 -3 -3 -2 -2 -2 -1 -1 ---------- Run | Yrd Mat Sub Mat Sto Rec Fac Was Fac Low Low Dat Pro Fac Ext Cet Arc Hub Fac Upp Upp Zhi Pro Res Tes Res Qua Frg Acc Com Machines Disabled 164 | . . 1 2 11 . 19 . 4 . . 1 . 15 6 2 3 23 6 1 . 2 1 3 9 2 10 20 8 15 Max in Single Turn 17 | . . 1 1 1 . 9 . 1 . . 1 . 4 1 2 1 17 3 1 . 2 1 1 1 1 1 2 1 2 Garrison Access 7 | . . . 1 . . 2 . . . . . . 1 . . . . . . . . . 2 1 . . . . . Phase Generator 1 | . . . . . . . . . . . . . . . . . . . . . . . . . . . . . 1 Network Hub 4 | . . . . . . . . . . . . . . . . . 4 . . . . . . . . . . . . Machines Repaired 1 | . . . . 1 . . . . . . . . . . . . . . . . . . . . . . . . . Machines Dismantled . | . . . . . . . . . . . . . . . . . . . . . . . . . . . . . . Machines Sabotaged . | . . . . . . . . . . . . . . . . . . . . . . . . . . . . . . Overloaded Fab Kills . | . . . . . . . . . . . . . . . . . . . . . . . . . . . . . . Hacking | -11 -10 -10 -8 -8 -8 -6 -6 -6 -6 -6 -6 -5 -5 -5 -5 -5 -5 -4 -4 -4 -4 -3 -3 -3 -2 -2 -2 -1 -1 --------- Run | Yrd Mat Sub Mat Sto Rec Fac Was Fac Low Low Dat Pro Fac Ext Cet Arc Hub Fac Upp Upp Zhi Pro Res Tes Res Qua Frg Acc Com Machines Accessed 134 | . 11 1 12 10 15 13 . 4 1 . 3 . 9 14 1 . 3 1 . . 4 1 12 6 5 5 3 . . Terminals 82 | . 8 . 9 6 6 8 . 1 1 . . . 4 14 1 . 2 1 . . . 1 5 4 4 5 2 . . Fabricators 2 | . . . . . . 1 . . . . . . 1 . . . . . . . . . . . . . . . . Repair Stations 3 | . 1 . . 2 . . . . . . . . . . . . . . . . . . . . . . . . . Recycling Units 23 | . 2 . 1 2 8 2 . 3 . . . . 2 . . . . . . . . . 2 . 1 . . . . Scanalyzers 5 | . . . 1 . . . . . . . . . 1 . . . . . . . . . 2 1 . . . . . Garrison Access 10 | . . . 1 . . 2 . . . . . . 1 . . . 1 . . . . . 3 1 . . 1 . . Total Hacks 396 | . 34 1 40 23 39 18 . 10 7 . 26 . 20 37 1 . 9 6 . . 15 4 48 18 13 22 5 . . Successful 209 | . 19 1 28 13 31 4 . 3 7 . 26 . 7 14 . . 2 2 . . 15 4 16 4 2 9 2 . . Failed 186 | . 14 . 12 10 8 14 . 7 . . . . 13 23 1 . 7 4 . . . . 32 14 11 13 3 . . Catastrophic 47 | . 2 . 2 1 . 4 . 2 . . . . 2 3 1 . 3 2 . . . . 11 6 4 3 1 . . Database Lockouts 1 | . 1 . . . . . . . . . . . . . . . . . . . . . . . . . . . . Manual 144 | . 20 . 15 10 21 9 . 3 . . . . 6 12 1 . 4 6 . . . . 20 1 7 8 1 . . Terminals 249 | . 25 . 36 15 17 13 . 2 7 . . . 11 37 1 . 7 6 . . . 4 26 10 8 22 2 . . Fabricators 2 | . . . . . . 1 . . . . . . 1 . . . . . . . . . . . . . . . . Repair Stations 8 | . 4 . . 4 . . . . . . . . . . . . . . . . . . . . . . . . . Recycling Units 55 | . 5 . 1 4 20 2 . 8 . . . . 3 . . . . . . . . . 7 . 5 . . . . Scanalyzers 15 | . . . 2 . . . . . . . . . 2 . . . . . . . . . 9 2 . . . . . Garrison Access 23 | . . . 1 . . 2 . . . . . . 3 . . . 2 . . . . . 6 6 . . 3 . . Terminal Hacks 129 | . 10 1 19 6 8 1 . . 7 . 26 . 3 12 . . 2 1 . . 15 4 3 2 1 7 1 . . Record 22 | . . . . . . . . . 7 . 6 . . . . . . . . . 4 4 . . . 1 . . . Part Schematic 18 | . . . . 1 1 . . . . . 13 . . . . . . . . . 3 . . . . . . . . Robot Schematic 4 | . . . . . . . . . . . 4 . . . . . . . . . . . . . . . . . . Robot Analysis 9 | . 2 . 2 . . . . . . . . . . . . . . . . . 4 . . 1 . . . . . Prototype ID Bank 17 | . 2 . 4 . 4 . . . . . 3 . . . . . . . . . 4 . . . . . . . . Open Door 8 | . . . . 3 . . . . . . . . . 4 . . . . . . . . . . 1 . . . . Branch Access Points 2 | . . . . . . 1 . . . . . . . . . . . 1 . . . . . . . . . . . Terminal Index 1 | . . . 1 . . . . . . . . . . . . . . . . . . . . . . . . . . Alert Level 11 | . . . 2 . 1 . . . . . . . . 2 . . . . . . . . 2 . . 4 . . . Unreport Threat 9 | . . . 2 1 . . . . . . . . . 3 . . . . . . . . . 1 . 2 . . . Locate Traps 8 | . 2 . 2 . . . . . . . . . 1 1 . . 1 . . . . . . . . . 1 . . Reprogram Traps 3 | . 3 . . . . . . . . . . . . . . . . . . . . . . . . . . . . Transport Status 2 | . . . 1 . . . . . . . . . 1 . . . . . . . . . . . . . . . . Hauler Manifests 6 | . 1 . 1 1 . . . . . . . . 1 1 . . 1 . . . . . . . . . . . . Registered Components 3 | . . . 1 . . . . . . . . . . 1 . . . . . . . . 1 . . . . . . Zone Layout 3 | . . . 3 . . . . . . . . . . . . . . . . . . . . . . . . . . Proto ID Catalog 1 | . . 1 . . . . . . . . . . . . . . . . . . . . . . . . . . . Release Object 2 | . . . . . 2 . . . . . . . . . . . . . . . . . . . . . . . . Fabricator Hacks . | . . . . . . . . . . . . . . . . . . . . . . . . . . . . . . Repair Station Hacks 7 | . 4 . . 3 . . . . . . . . . . . . . . . . . . . . . . . . . Scan Component 4 | . 2 . . 2 . . . . . . . . . . . . . . . . . . . . . . . . . Repair 3 | . 2 . . 1 . . . . . . . . . . . . . . . . . . . . . . . . . Recycling Unit Hacks 12 | . . . 1 1 5 . . 2 . . . . 1 . . . . . . . . . 2 . . . . . . Retrieve Components 12 | . . . 1 1 5 . . 2 . . . . 1 . . . . . . . . . 2 . . . . . . Scanalyzer 9 | . . . 2 . . . . . . . . . 1 . . . . . . . . . 5 1 . . . . . Insert Component 7 | . . . 1 . . . . . . . . . 1 . . . . . . . . . 4 1 . . . . . Analyze 2 | . . . 1 . . . . . . . . . . . . . . . . . . . 1 . . . . . . Garrison Access Hacks 6 | . . . 1 . . 1 . . . . . . 1 . . . . . . . . . 2 1 . . . . . Seal Access 6 | . . . 1 . . 1 . . . . . . 1 . . . . . . . . . 2 1 . . . . . Unauthorized Hacks 46 | . 5 . 5 3 18 2 . 1 . . . . 1 2 . . . 1 . . . . 4 . 1 2 1 . . Terminals 31 | . 3 . 5 1 9 2 . . . . . . 1 2 . . . 1 . . . . 3 . 1 2 1 . . Track 1 | . . . . . . . . . . . . . . . . . . . . . . . . . . . 1 . . Botnet 22 | . 2 . 3 1 4 2 . . . . . . 1 2 . . . 1 . . . . 3 . 1 2 . . . Operators 3 | . 1 . 2 . . . . . . . . . . . . . . . . . . . . . . . . . . Skim 5 | . . . . . 5 . . . . . . . . . . . . . . . . . . . . . . . . Fabricators . | . . . . . . . . . . . . . . . . . . . . . . . . . . . . . . Repair Stations . | . . . . . . . . . . . . . . . . . . . . . . . . . . . . . . Recycling Units 15 | . 2 . . 2 9 . . 1 . . . . . . . . . . . . . . 1 . . . . . . Recyclers 2 | . . . . . . . . 1 . . . . . . . . . . . . . . 1 . . . . . . Mask 2 | . . . . . 2 . . . . . . . . . . . . . . . . . . . . . . . . Tunnel 11 | . 2 . . 2 7 . . . . . . . . . . . . . . . . . . . . . . . . Scanalyzers . | . . . . . . . . . . . . . . . . . . . . . . . . . . . . . . Garrison Access . | . . . . . . . . . . . . . . . . . . . . . . . . . . . . . . Data Cores Recovered 6 | . 1 . . . . . . . . . . . . 2 . . . . . . . . 1 2 . . . . . Used 2 | . . . . . . . . . . . . . . 1 . . . . . . . . 1 . . . . . . Hacking Detections 90 | . 10 . 9 5 6 11 . 3 1 . . . 7 12 1 . 3 1 . . . 1 9 3 3 4 1 . . Full Trace Events 6 | . 1 . 1 . 1 1 . 1 . . . . . 1 . . . . . . . . . . . . . . . Feedback Events 1 | . . . . . . . . 1 . . . . . . . . . . . . . . . . . . . . . Corruption 1 | . . . . . . . . 1 . . . . . . . . . . . . . . . . . . . . . Feedback Blocked . | . . . . . . . . . . . . . . . . . . . . . . . . . . . . . . Robot Schematics Acquired 8 | . . . . . . . . . . . 4 . . . . . . . . . . . . 2 . 2 . . . Robots Built . | . . . . . . . . . . . . . . . . . . . . . . . . . . . . . . Authchips . | . . . . . . . . . . . . . . . . . . . . . . . . . . . . . . Time . | . . . . . . . . . . . . . . . . . . . . . . . . . . . . . . Total Robot Build Rating . | . . . . . . . . . . . . . . . . . . . . . . . . . . . . . . Part Schematics Acquired 35 | . . . 1 1 1 . . . . . 13 . . . . . . . . . 3 . 1 3 . 12 . . . Parts Built . | . . . . . . . . . . . . . . . . . . . . . . . . . . . . . . Authchips . | . . . . . . . . . . . . . . . . . . . . . . . . . . . . . . Time . | . . . . . . . . . . . . . . . . . . . . . . . . . . . . . . Total Part Build Rating . | . . . . . . . . . . . . . . . . . . . . . . . . . . . . . . Part Studies Acquired . | . . . . . . . . . . . . . . . . . . . . . . . . . . . . . . Parts Repaired 3 | . 2 . . 1 . . . . . . . . . . . . . . . . . . . . . . . . . Time 90 | . 52 . . 38 . . . . . . . . . . . . . . . . . . . . . . . . . Parts Recycled . | . . . . . . . . . . . . . . . . . . . . . . . . . . . . . . Recycled Matter . | . . . . . . . . . . . . . . . . . . . . . . . . . . . . . . Retrieved Matter . | . . . . . . . . . . . . . . . . . . . . . . . . . . . . . . Retrieved Components 50 | . . . 9 2 29 . . . . . . . . . . . . . . . . . 10 . . . . . . Parts Scanalyzed 3 | . . . 1 . . . . . . . . . 1 . . . . . . . . . 1 . . . . . . Part Schematics Acquired 2 | . . . 1 . . . . . . . . . . . . . . . . . . . 1 . . . . . . Parts Damaged . | . . . . . . . . . . . . . . . . . . . . . . . . . . . . . . Bothacking | -11 -10 -10 -8 -8 -8 -6 -6 -6 -6 -6 -6 -5 -5 -5 -5 -5 -5 -4 -4 -4 -4 -3 -3 -3 -2 -2 -2 -1 -1 ------------ Run | Yrd Mat Sub Mat Sto Rec Fac Was Fac Low Low Dat Pro Fac Ext Cet Arc Hub Fac Upp Upp Zhi Pro Res Tes Res Qua Frg Acc Com Used RIF Installer . | . . . . . . . . . . . . . . . . . . . . . . . . . . . . . . Robots Hacked . | . . . . . . . . . . . . . . . . . . . . . . . . . . . . . . Non-combat . | . . . . . . . . . . . . . . . . . . . . . . . . . . . . . . Combat . | . . . . . . . . . . . . . . . . . . . . . . . . . . . . . . Robot Hacks Applied . | . . . . . . . . . . . . . . . . . . . . . . . . . . . . . . Relay Couplers Released 4 | . . . . . . . . . . . . . . . . . . 4 . . . . . . . . . . . Programmers 4 | . . . . . . . . . . . . . . . . . . 4 . . . . . . . . . . . Fabnet Peak Effective % . | . . . . . . . . . . . . . . . . . . . . . . . . . . . . . . Robots Rewired 17 | . . . . . . . . . . . . . . 15 . . . . 2 . . . . . . . . . . Allies Hacked 2 | . . . . . . . . 2 . . . . . . . . . . . . . . . . . . . . . Hacks Repelled . | . . . . . . . . . . . . . . . . . . . . . . . . . . . . . . Allies | -11 -10 -10 -8 -8 -8 -6 -6 -6 -6 -6 -6 -5 -5 -5 -5 -5 -5 -4 -4 -4 -4 -3 -3 -3 -2 -2 -2 -1 -1 -------- Run | Yrd Mat Sub Mat Sto Rec Fac Was Fac Low Low Dat Pro Fac Ext Cet Arc Hub Fac Upp Upp Zhi Pro Res Tes Res Qua Frg Acc Com Total Allies 56 | . . . . . . . 19 . . . . . . 24 5 . . . 2 . . . . . . . . 3 3 Largest Group 19 | . . . . . . . 19 17 2 1 . . . 18 17 13 10 . 2 2 . . . . . . . 3 3 Highest-Rated Group 900 | . . . . . . . 684 584 73 44 . . . 587 900 670 596 . 77 77 . . . . . . . 379 376 Highest-Rated Ally 159 | . . . . . . . 50 46 46 44 . . . 159 152 96 96 . 47 47 . . . . . . . 135 132 Total Orders 6 | . . . . . . . . . . . . . . 2 4 . . . . . . . . . . . . . . STAY 3 | . . . . . . . . . . . . . . 1 2 . . . . . . . . . . . . . . FOLLOW 3 | . . . . . . . . . . . . . . 1 2 . . . . . . . . . . . . . . Ally Attacks 428 | . . . . . . . . 152 16 3 . . . 93 57 14 76 . . 11 . . . . . . . 2 4 Total Damage 10268 | . . . . . . . . 3336 313 48 . . . 2251 1236 457 2143 . . 444 . . . . . . . 28 12 Kills 57 | . . . . . . . . 23 4 . . . . 14 4 1 10 . . 1 . . . . . . . . . Allies Corrupted 3 | . . . . . . . . 2 . . . . . . 1 . . . . . . . . . . . . . . Allies Melted 2 | . . . . . . . . . . . . . . . . . 2 . . . . . . . . . . . . Intel | -11 -10 -10 -8 -8 -8 -6 -6 -6 -6 -6 -6 -5 -5 -5 -5 -5 -5 -4 -4 -4 -4 -3 -3 -3 -2 -2 -2 -1 -1 ------- Run | Yrd Mat Sub Mat Sto Rec Fac Was Fac Low Low Dat Pro Fac Ext Cet Arc Hub Fac Upp Upp Zhi Pro Res Tes Res Qua Frg Acc Com Active Infowar (turns) 38052 | 81 2497 2287 2031 1234 . 155 1530 1166 1898 1435 183 574 1365 1192 487 2026 450 783 1455 843 513 915 2240 910 545 1533 1465 547 5712 Optics 23098 | . . . . . . . 1530 1166 4 . . . 1365 1192 487 2026 450 783 1455 843 513 915 2240 907 545 1533 458 . 4686 Sensors 9774 | . . . . . . . . . 1894 1435 183 . . . . . . . . . . . 1496 665 423 1011 1389 482 796 A.S.S. 1221 | . . . . . . . . . . . . . . . . . . . . . . . . . . . . . 1221 IFF 144 | . . . . . . . . . . . . . . . . . . . . . . . 144 . . . . . . Terrain 2 | . . . . . . 2 . . . . . . . . . . . . . . . . . . . . . . . Traps 2 | . . . . . . . . 2 . . . . . . . . . . . . . . . . . . . . . Seismic 13180 | 81 2497 2287 2031 1234 . 98 . . . . . . . . . . 40 723 1120 843 368 915 396 . 444 103 . . . Cloaking 318 | . . . . . . . . . . . . . . . . . . . . . . . . . . 1 7 65 245 Jamming 997 | . . . . . . 55 . . . . . 574 . . . . . . . . . . 102 . 69 2 116 29 50 ECM 2 | . . . . . . . . . . . . . . . . . . . . . . . . . . . 2 . . Robot Analysis Total 9 | . 2 . 2 . . . . . . . . . . . . . . . . . 4 . . 1 . . . . . Derelict Logs Recovered 10 | . . 2 . . . . . . 2 3 . 2 . . . . . . 1 . . . . . . . . . . Drone Launches . | . . . . . . . . . . . . . . . . . . . . . . . . . . . . . . Drone Recoveries . | . . . . . . . . . . . . . . . . . . . . . . . . . . . . . . Exploration | -11 -10 -10 -8 -8 -8 -6 -6 -6 -6 -6 -6 -5 -5 -5 -5 -5 -5 -4 -4 -4 -4 -3 -3 -3 -2 -2 -2 -1 -1 ------------- Run | Yrd Mat Sub Mat Sto Rec Fac Was Fac Low Low Dat Pro Fac Ext Cet Arc Hub Fac Upp Upp Zhi Pro Res Tes Res Qua Frg Acc Com Turns Passed 49198 | 255 2497 2513 2294 3350 3434 1860 1555 1166 1898 1435 881 1407 1381 1200 487 2026 450 783 1455 843 513 915 2240 932 545 1533 1806 567 6977 Spaces Moved 29966 | 96 866 869 995 960 1548 1041 951 730 1161 867 242 853 651 822 279 64 376 376 594 377 168 690 3755 1323 799 2202 2215 402 3694 Core 4 | 4 . . . . . . . . . . . . . . . . . . . . . . . . . . . . . Treads 10654 | 92 866 869 960 960 894 537 298 233 1161 867 242 853 272 . . . . . 415 31 5 690 139 . . . . . 270 Legs 13530 | . . . 35 . 21 322 632 . . . . . 302 822 279 64 376 218 179 346 163 . 1536 286 56 2202 2193 159 3339 Wheels . | . . . . . . . . . . . . . . . . . . . . . . . . . . . . . . Hover 3819 | . . . . . 633 182 21 497 . . . . 77 . . . . 158 . . . . 1820 81 . . 22 243 85 Flight 1959 | . . . . . . . . . . . . . . . . . . . . . . . 260 956 743 . . . . Fastest Speed 38 | 50 160 240 160 163 122 86 86 127 154 154 154 154 86 86 86 86 86 124 210 201 107 107 38 39 41 41 41 41 57 Average Speed 108 | 155 208 240 169 199 179 136 104 142 154 154 154 154 164 86 86 86 87 166 215 201 191 107 46 42 41 41 41 54 80 Slowest Speed 340 | 160 240 240 340 245 320 191 145 154 154 154 154 154 219 86 86 86 124 228 228 210 201 107 107 54 41 41 41 75 149 Overloaded Moves . | . . . . . . . . . . . . . . . . . . . . . . . . . . . . . . Propulsion Burnouts . | . . . . . . . . . . . . . . . . . . . . . . . . . . . . . . Robots Hopped 2 | . . . . . . . . . . . . . . . . . . . . . . . . 1 1 . . . . Potential Cave-ins 10 | . . . . . . 1 . . . . . . . . . . . . . . . . 1 . . 2 2 2 2 Cave-ins Triggered . | . . . . . . . . . . . . . . . . . . . . . . . . . . . . . . Teleports 1 | . . . . . . . . . . . . . . . . . . . . . . . . . . . 1 . . Exploration Rate (%) 66 | 6 99 41 68 96 99 30 96 24 94 84 80 93 24 84 75 82 47 17 89 55 63 93 86 98 25 97 47 15 80 Regions Visited 29 Branch Regions 19 Pre-discovered Areas 18 | . 2 . . 2 8 . . . 2 . 1 . . . . . . . . . 3 . . . . . . . . Known Exits Taken 16 | . . . 1 . . . . 1 1 1 . 1 . 1 . . 1 1 1 1 . . 1 1 1 1 1 1 . Unknown Exits Taken 11 | 1 1 1 . 1 1 . . . . . 1 . 1 . 1 1 . . . . 1 1 . . . . . . . Scrap Searched 17 | . . 3 . . . . . . 3 2 . 3 . . . . . . 1 1 . 4 . . . . . . . Spaces Dug 250 | . 5 21 . 16 2 8 . 2 2 1 9 2 6 . . . 3 30 1 1 . 15 19 13 5 14 15 11 49 Terrain Destroyed 3139 | . 8 50 . 37 7 236 18 30 13 20 12 33 107 122 33 23 527 89 19 10 . 31 70 70 44 35 95 106 1294 Melee . | . . . . . . . . . . . . . . . . . . . . . . . . . . . . . . Projectile 2201 | . 2 . . 22 7 65 18 30 13 20 12 33 36 122 33 23 59 49 19 10 . 24 70 56 44 35 81 83 1235 AOE 938 | . 6 50 . 15 . 171 . . . . . . 71 . . . 468 40 . . . 7 . 14 . . 14 23 59 Terrain Rammed . | . . . . . . . . . . . . . . . . . . . . . . . . . . . . . . Walls Destroyed . | . . . . . . . . . . . . . . . . . . . . . . . . . . . . . . Machines Disabled . | . . . . . . . . . . . . . . . . . . . . . . . . . . . . . . Actions | -11 -10 -10 -8 -8 -8 -6 -6 -6 -6 -6 -6 -5 -5 -5 -5 -5 -5 -4 -4 -4 -4 -3 -3 -3 -2 -2 -2 -1 -1 --------- Run | Yrd Mat Sub Mat Sto Rec Fac Was Fac Low Low Dat Pro Fac Ext Cet Arc Hub Fac Upp Upp Zhi Pro Res Tes Res Qua Frg Acc Com Total 44374 | 153 1439 1191 1367 2145 2098 1383 1470 821 1244 931 730 916 885 1234 499 2016 458 494 723 427 350 817 4132 1595 954 2741 2939 717 7505 Wait 9871 | 17 463 214 120 912 363 134 451 31 42 29 445 11 94 183 155 1926 14 24 35 17 159 75 122 124 60 387 260 214 2790 Move 29933 | 95 865 868 994 959 1547 1041 950 729 1160 866 241 852 650 821 278 63 375 375 593 376 167 689 3754 1320 796 2201 2214 401 3693 Hop 2 | . . . . . . . . . . . . . . . . . . . . . . . . 1 1 . . . . Pick Up 362 | 7 18 15 34 20 23 34 8 2 5 . 5 3 10 5 9 . 2 15 3 . 3 3 31 6 8 10 24 7 52 Fast Attach 125 | 6 2 1 11 8 3 3 . 2 . . . . 1 2 . 1 3 5 . . 4 . 19 4 3 4 25 1 17 Attach 95 | 1 . 9 6 4 4 8 . . 1 . 2 . 1 . . . 3 5 1 . . . 1 6 2 . 13 4 24 Detach 31 | . . . 2 2 3 6 . . 1 . . . . . . . 1 1 . . . . . 2 . . 5 2 6 Swap 527 | . 16 17 38 34 7 16 5 5 1 . . 4 11 3 10 4 5 13 7 . 1 1 35 26 17 49 38 7 157 Drop 419 | 1 12 16 41 31 39 38 3 1 3 . 5 3 11 6 8 . 2 15 5 1 6 . 45 7 10 14 28 3 65 Fire 2819 | 26 57 51 105 163 106 100 53 49 29 36 32 43 107 116 39 22 53 40 46 33 10 49 125 99 57 76 332 77 688 Melee . | . . . . . . . . . . . . . . . . . . . . . . . . . . . . . . Ram 1 | . . . . . . . . 1 . . . . . . . . . . . . . . . . . . . . . Kick 5 | . . . 1 . . 2 . . . . . . . . . . . 1 . . . . . . . . . 1 . Crush 31 | . 6 . 15 9 . . . 1 . . . . . . . . . . . . . . . . . . . . . Escape Stasis 8 | . . . . . . . . . . . . . . . . . . . . . . . . . . . . . 8 Rewire 140 | . . . . . 3 . . . 2 . . . . 98 . . . . 33 . . . . . . . . . 4 Trap 1 | . . . . . . . . . . . . . . . . . . . . . . . . . . . . . 1 Miscellaneous 4 | . . . . 3 . 1 . . . . . . . . . . . . . . . . . . . . . . . Route ------- -11/Scrapyard -10/Materials (discovered 6 exits: [*Mat x3] / [*Min x2] / *Sub) -10/Subcaves -8/Materials (discovered 2 exits: *Sto x2) -8/Storage (discovered 2 exits: [*Fac] / *Rec) -8/Recycling -6/Factory (discovered 4 exits: *Fac x2 / Low x2) -6/Waste -6/Factory (discovered 2 exits: *Fac / *Low) -6/Lower Caves -6/Lower Caves (discovered 2 exits: *Fac / *Dat) -6/Data Miner -5/Proximity Caves -5/Factory (discovered 6 exits: Fac x3 / Upp x2 / *Ext) -5/Extension (discovered 3 exits: *Fac x2 / *Cet) -5/Cetus (discovered 2 exits: *Fac / [*Arc]) -5/Archives (discovered 3 exits: *Fac / *Hub x2) -5/Hub_04(d) (discovered 3 exits: *Fac x3) -4/Factory (discovered 2 exits: *Upp x2) -4/Upper Caves -4/Upper Caves (discovered 2 exits: *Res / *Zhi) -4/Zhirov -3/Proximity Caves -3/Research (discovered 4 exits: *Res / *Arm / *Tes x2) -3/Testing -2/Research -2/Quarantine (discovered 3 exits: *Acc / *Sec / *Frg) -2/Protoforge -1/Access (discovered 2 exits: Sur / *Com) -1/Command (discovered 2 exits: *Sur x2) 0b11 Command History --------- Turn | Location | Event 8 | -11/Scrapyard | Discovered new exit (range 15) 256 | -11/Scrapyard | Entered Materials 306 | -10/Materials | Build established: Mutant 492 | -10/Materials | Discovered new exit (range 9) 895 | -10/Materials | Discovered new exit (range 14) 1023 | -10/Materials | Discovered new exit (range 14) 1653 | -10/Materials | Central database locked down 2015 | -10/Materials | Discovered new exit (range 15) 2278 | -10/Materials | Discovered new exit (range 9) 2424 | -10/Materials | Discovered new exit (range 6) 2606 | -10/Materials | Repaired Lgt. Treads 2634 | -10/Materials | Repaired Lgt. Treads 2753 | -10/Materials | Entered Subcaves 2763 | -10/Subcaves | Learned Materials emergency access door positions 3353 | -10/Subcaves | Visited 4L-MR0's lab 3434 | -10/Subcaves | Found Powered Cannon 3958 | -10/Subcaves | A Subdweller sparked back to life 3958 | -10/Subcaves | A Subdweller sparked back to life 3958 | -10/Subcaves | A Subdweller sparked back to life 4001 | -10/Subcaves | Core integrity fell below 50% 4056 | -10/Subcaves | Found Flightbrick 4253 | -10/Subcaves | Shifting Twisted Machinery released Mak. Shrapnel Gun 4258 | -10/Subcaves | Shifting Twisted Machinery released Mak. Light Armor Plating 4337 | -10/Subcaves | Discovered new exit (range 15) 4416 | -10/Subcaves | Build established: Scavenger-Mutant 4751 | -10/Subcaves | Build established: Mutant 4876 | -10/Subcaves | Found Prototype Special Melee Weapon 5266 | -10/Subcaves | Entered Materials 5266 | -8/Materials | Evolved 4 slots: Power x1, Propulsion x1, Utility x1, Weapon x1 5267 | -8/Materials | Identified exit to Storage 5675 | -8/Materials | Garrison activated, responded to threat 6132 | -8/Materials | Build established: Scavenger-Gunner 6504 | -8/Materials | Discovered exit to Storage (range 11) 7560 | -8/Materials | Entered Storage 7620 | -8/Storage | Build established: Gunner 9083 | -8/Storage | Destroyed 7 combat bots 9087 | -8/Storage | Used back door to open Recycling access 9087 | -8/Storage | Discovered new exit (range 5) 9413 | -8/Storage | Repaired Arm. Treads 9478 | -8/Storage | Found Prototype Launcher 9478 | -8/Storage | Identified Scatter Rocket Array 10102 | -8/Storage | Discovered new exit (range 8) 10910 | -8/Storage | Entered Recycling 11337 | -8/Recycling | Build established: Scavenger-Gunner 11649 | -8/Recycling | Discovered new exit (range 15) 11691 | -8/Recycling | Core integrity fell below 50% 12303 | -8/Recycling | Entered Scraplab 12326 | -8/Recycling | Found Prototype Device 12326 | -8/Recycling | Identified Scrap Engine 12617 | -8/Recycling | Build established: Mutant 13021 | -8/Recycling | Learned location of 2 exits from Lower Caves 13054 | -8/Recycling | Build established: Construct 13062 | -8/Recycling | Learned location of 1 exit from Extension 13092 | -8/Recycling | Learned Factory emergency access door positions 13114 | -8/Recycling | Learned Storage emergency access door positions 13126 | -8/Recycling | Learned location of 1 exit from Extension 13164 | -8/Recycling | Learned location of 1 exit from Extension 13200 | -8/Recycling | Learned location of 1 exit from Recycling 14169 | -8/Recycling | Watched by a mysterious "MATRIX" hacker. 14344 | -8/Recycling | Entered Factory 14344 | -6/Factory | Evolved 4 slots: Propulsion x1, Utility x2, Weapon x1 14559 | -6/Factory | Discovered new exit (range 14) 14694 | -6/Factory | Search patrols dispatched 15154 | -6/Factory | Garrison activated, responded to threat 15394 | -6/Factory | First assault squad dispatched 16045 | -6/Factory | Discovered new exit (range 10) 16113 | -6/Factory | Identified exit to Lower Caves 16204 | -6/Factory | Manually triggered Chute Trap 16204 | -6/Factory | Sucked down chute 16204 | -6/Factory | Entered Waste 16230 | -6/Waste | Spotted C-40 Crusher 16237 | -6/Waste | Destroyed C-40 Crusher 16294 | -6/Waste | Spotted C-40 Crusher 16314 | -6/Waste | Destroyed C-40 Crusher 16331 | -6/Waste | Spotted C-40 Crusher 16373 | -6/Waste | Destroyed C-40 Crusher 16382 | -6/Waste | Spotted C-40 Crusher 16400 | -6/Waste | Spotted C-40 Crusher 16433 | -6/Waste | Destroyed C-40 Crusher 16452 | -6/Waste | Destroyed C-40 Crusher 16475 | -6/Waste | Spotted C-40 Crusher 16497 | -6/Waste | Destroyed C-40 Crusher 16576 | -6/Waste | Discovered new exit (range 13) 16825 | -6/Waste | Warlord forces began an assault 17759 | -6/Waste | Entered Factory 17759 | -6/Factory | Accompanied by 17 allies 18109 | -6/Factory | First assault squad dispatched 18304 | -6/Factory | Discovered new exit (range 13) 18425 | -6/Factory | Spotted B-75 Beast 18434 | -6/Factory | Destroyed B-75 Beast 18520 | -6/Factory | Discovered exit to Lower Caves (range 4) 18925 | -6/Factory | Entered Lower Caves 18925 | -6/Lower Caves | Accompanied by 2 allies 18926 | -6/Lower Caves | Identified exit to Lower Caves 20333 | -6/Lower Caves | Attracted the attention of an 0b10 base 20345 | -6/Lower Caves | Core integrity fell below 50% 20379 | -6/Lower Caves | Learned Armory security intel 20379 | -6/Lower Caves | Learned Extension stockpile data 20379 | -6/Lower Caves | Learned Extension emergency access door positions 20379 | -6/Lower Caves | Learned location of 2 exits from Upper Caves 20379 | -6/Lower Caves | Learned location of 2 exits from Lower Caves 20823 | -6/Lower Caves | Entered another Lower Caves area 20823 | -6/Lower Caves | Accompanied by 1 ally 20824 | -6/Lower Caves | Identified exit to Factory 20824 | -6/Lower Caves | Identified exit to Data Miner 21251 | -6/Lower Caves | Learned 12 Factory zone layouts 21453 | -6/Lower Caves | Encountered a Warlord checkpoint 21610 | -6/Lower Caves | Learned 12 Factory zone layouts 21623 | -6/Lower Caves | Learned 4 Factory zone layouts 22258 | -6/Lower Caves | Entered Data Miner 22310 | -6/Data Miner | Discovered new exit (range 6) 22339 | -6/Data Miner | Met Data Miner 22374 | -6/Data Miner | Learned location of Section 7 (-2) 22374 | -6/Data Miner | Acquired the access code to Warlord's prototype stash 22396 | -6/Data Miner | Received God Mode back door access code from Data Miner 22448 | -6/Data Miner | Data Conduit disabled 23139 | -6/Data Miner | Entered Proximity Caves 23144 | -5/Proximity Caves | Spotter reported a threat 23149 | -5/Proximity Caves | Spotter reported a threat 23715 | -5/Proximity Caves | Spotted B-75 Beast 23717 | -5/Proximity Caves | Spotter reported a threat 23728 | -5/Proximity Caves | Destroyed B-75 Beast 24308 | -5/Proximity Caves | Learned Factory security intel 24546 | -5/Proximity Caves | Entered Factory 24546 | -5/Factory | Evolved 2 slots: Propulsion x1, Utility x1 24547 | -5/Factory | Identified exit to Upper Caves 24548 | -5/Factory | Identified exit to Factory 24846 | -5/Factory | Search patrols dispatched 25061 | -5/Factory | Spotted B-75 Beast 25465 | -5/Factory | Garrison activated, responded to threat 25746 | -5/Factory | First assault squad dispatched 25789 | -5/Factory | Discovered new exit (range 22) 25802 | -5/Factory | System corruption reached 10% 25927 | -5/Factory | Entered Extension 25928 | -5/Extension | Identified exit to Cetus 25985 | -5/Extension | Rescued a captive Derelict 26163 | -5/Extension | Rescued a captive Derelict 26238 | -5/Extension | Rescued a captive Derelict 26239 | -5/Extension | Rescued a captive Derelict 26509 | -5/Extension | Build established: Commander-Construct 26600 | -5/Extension | Spotted B-75 Beast 26615 | -5/Extension | Allies destroyed B-75 Beast 26615 | -5/Extension | Spotted B-75 Beast 26642 | -5/Extension | Destroyed B-75 Beast 26692 | -5/Extension | Rescued a captive Derelict 26757 | -5/Extension | Rescued A7 26803 | -5/Extension | Rescued a captive Derelict 26827 | -5/Extension | First assault squad dispatched 26877 | -5/Extension | Disrupted transfer network 26938 | -5/Extension | Rescued a captive Derelict 26938 | -5/Extension | Rescued a captive Derelict 27127 | -5/Extension | Entered Cetus 27127 | -5/Cetus | Accompanied by 16 allies (A7) 27132 | -5/Cetus | Acquired a Cetus Manufacturing Module code from A7 27143 | -5/Cetus | Spotted Cetus Guard 27144 | -5/Cetus | Spotted Cetus Guard 27144 | -5/Cetus | Spotted Cetus Guard 27154 | -5/Cetus | Destroyed Cetus Guard 27166 | -5/Cetus | Spotted Cetus Guard 27169 | -5/Cetus | Allies destroyed Cetus Guard 27178 | -5/Cetus | Destroyed Cetus Guard 27180 | -5/Cetus | Allies destroyed Cetus Guard 27209 | -5/Cetus | Lost 4 allies 27228 | -5/Cetus | Started Cetus Manufacturing Module 27249 | -5/Cetus | Discovered new exit (range 22) 27253 | -5/Cetus | Manufactured an Enhanced Grunt 27278 | -5/Cetus | Manufactured an Enhanced Grunt 27303 | -5/Cetus | Manufactured an Enhanced Grunt 27328 | -5/Cetus | Manufactured an Enhanced Grunt 27334 | -5/Cetus | Spotted Cetus Guard 27334 | -5/Cetus | Spotted Cetus Guard 27338 | -5/Cetus | Spotted Cetus Guard 27342 | -5/Cetus | Destroyed Cetus Guard 27344 | -5/Cetus | Destroyed Cetus Guard 27344 | -5/Cetus | Spotted Cetus Guard 27352 | -5/Cetus | Destroyed Cetus Guard 27353 | -5/Cetus | Manufactured an Enhanced Grunt 27360 | -5/Cetus | Discovered exit to Factory (range 22) 27362 | -5/Cetus | Allies destroyed Cetus Guard 27377 | -5/Cetus | Met Revision 17 27459 | -5/Cetus | Escorted A7 to Cetus Mainframe 27541 | -5/Cetus | Murdered A7 27544 | -5/Cetus | Extracted ID and sensor layout for unrecognized location from A7's data core 27614 | -5/Cetus | Entered Archives 27614 | -5/Archives | Accompanied by 13 allies 27645 | -5/Archives | Discovered new exit (range 21) 27654 | -5/Archives | Discovered new exit (range 20) 27679 | -5/Archives | Lost 3 allies 27680 | -5/Archives | Discovered exit to Factory (range 12) 29640 | -5/Archives | Entered Hub_04(d) 29640 | -5/Hub_04(d) | Accompanied by 10 allies 29640 | -5/Hub_04(d) | Discovered exit to Factory (range 10) 29672 | -5/Hub_04(d) | Spotted B-75 Beast 29694 | -5/Hub_04(d) | Found Prototype Device 29694 | -5/Hub_04(d) | Identified Exp. Thermal Shield 29743 | -5/Hub_04(d) | Discovered exit to Factory (range 12) 29779 | -5/Hub_04(d) | Discovered exit to Factory (range 6) 29940 | -5/Hub_04(d) | First assault squad dispatched 29973 | -5/Hub_04(d) | Garrison activated, responded to threat 29990 | -5/Hub_04(d) | Network Hub disabled 30007 | -5/Hub_04(d) | Network Hub disabled 30010 | -5/Hub_04(d) | Spotted Lightning 30010 | -5/Hub_04(d) | Spotted Lightning 30011 | -5/Hub_04(d) | Spotted Lightning 30028 | -5/Hub_04(d) | Destroyed 7 combat bots 30043 | -5/Hub_04(d) | Spotted Lightning 30044 | -5/Hub_04(d) | Spotted Lightning 30045 | -5/Hub_04(d) | Spotted Lightning 30059 | -5/Hub_04(d) | Spotted Lightning 30059 | -5/Hub_04(d) | Spotted Lightning 30064 | -5/Hub_04(d) | Network Hub disabled 30064 | -5/Hub_04(d) | Network Hub disabled 30066 | -5/Hub_04(d) | Core integrity fell below 50% 30066 | -5/Hub_04(d) | System corruption reached 30% 30066 | -5/Hub_04(d) | Spotted Lightning 30090 | -5/Hub_04(d) | Entered Factory 30090 | -4/Factory | Evolved 2 slots: Power x1, Utility x1 30111 | -4/Factory | Lost 6 parts (2p2u2w) 30141 | -4/Factory | Build established: Construct 30330 | -4/Factory | Identified exit to Upper Caves 30590 | -4/Factory | First assault squad dispatched 30656 | -4/Factory | Found Prototype Processor 30656 | -4/Factory | Identified Exp. Targeting Computer 30692 | -4/Factory | Unchained authorized (GL-D0S) 30872 | -4/Factory | System corruption reached 10% 30873 | -4/Factory | Entered Upper Caves 30874 | -4/Upper Caves | Identified exit to Upper Caves 31178 | -4/Upper Caves | Spotted B-86 Titan 31185 | -4/Upper Caves | Destroyed B-86 Titan 31802 | -4/Upper Caves | Attracted the attention of an 0b10 checkpoint 31836 | -4/Upper Caves | Learned Research terminal intel 31933 | -4/Upper Caves | Attracted the attention of an 0b10 outpost 31976 | -4/Upper Caves | Destroyed 7 combat bots 32316 | -4/Upper Caves | Found Alien Artifact 32328 | -4/Upper Caves | Entered another Upper Caves area 32328 | -4/Upper Caves | Accompanied by 2 allies 32329 | -4/Upper Caves | Identified exit to Zhirov 32332 | -4/Upper Caves | Ambushed by wild Derelicts 32438 | -4/Upper Caves | Discovered new exit (range 10) 33167 | -4/Upper Caves | Attracted the attention of an 0b10 checkpoint 33171 | -4/Upper Caves | Entered Zhirov 33171 | -4/Zhirov | Discovered new exit (range 3) 33208 | -4/Zhirov | Met Zhirov 33252 | -4/Zhirov | Learned location of Testing (-3) 33282 | -4/Zhirov | Zhirov requested help retrieving the SGEMP Prototype 33323 | -4/Zhirov | Found Alien Artifact 33323 | -4/Zhirov | Identified Integrated Reactor 33323 | -4/Zhirov | Installed Integrated Reactor, increased core energy generation (+10) 33350 | -4/Zhirov | Found Alien Artifact 33684 | -4/Zhirov | Entered Proximity Caves 33916 | -3/Proximity Caves | Received a Behemoth hack from an annoying Tinkerer 34127 | -3/Proximity Caves | Learned Armory garrison access intel 34127 | -3/Proximity Caves | Learned Extension stockpile data 34127 | -3/Proximity Caves | Learned Extension trap positions 34206 | -3/Proximity Caves | Attacked by a faux Warlord 34566 | -3/Proximity Caves | Discovered new exit (range 5) 34599 | -3/Proximity Caves | Entered Research 34599 | -3/Research | Evolved 2 slots: Propulsion x1, Utility x1 34600 | -3/Research | Loaded intel: 22 terminal locations 34799 | -3/Research | Revision forces began assault on 0b10 34807 | -3/Research | Spotted B-86 Titan 34856 | -3/Research | Destroyed B-86 Titan 34859 | -3/Research | Met up with Revision 17++ 34915 | -3/Research | Spotted B-86 Titan 34924 | -3/Research | Destroyed B-86 Titan 35023 | -3/Research | Identified Dimensional Node Initializer 35023 | -3/Research | Identified Transdimensional Reconstructor 35215 | -3/Research | Discovered new exit (range 15) 35230 | -3/Research | Identified exit to Testing 35234 | -3/Research | Targeted by mysterious "MATRIX" hacker. 35299 | -3/Research | Research terminal network offline 35383 | -3/Research | Spotted Executioner 35501 | -3/Research | Discovered new exit (range 4) 35503 | -3/Research | Identified exit to Armory 35549 | -3/Research | Discovered new exit (range 10) 35552 | -3/Research | Identified exit to Research 35606 | -3/Research | Discovered exit to Testing (range 18) 35740 | -3/Research | Found Prototype Device 35740 | -3/Research | Identified Exp. EM Disruption Field 35968 | -3/Research | Found Prototype Processor 35968 | -3/Research | Identified Spectral Analyzer 36267 | -3/Research | Found Unknown Device 36267 | -3/Research | Identified Quantum Capacitor 36410 | -3/Research | Spotted Striker 36413 | -3/Research | Spotted Striker 36415 | -3/Research | Destroyed Striker 36425 | -3/Research | Spotted Striker 36541 | -3/Research | Found Prototype Hackware 36569 | -3/Research | Spotted Striker 36600 | -3/Research | Spotted Striker 36607 | -3/Research | Destroyed Striker 36662 | -3/Research | Identified Exp. System Shield 36733 | -3/Research | Spotted Executioner 36736 | -3/Research | Destroyed Executioner 36736 | -3/Research | Spotted Striker 36775 | -3/Research | Found Prototype Processor 36775 | -3/Research | Identified Exp. Core Analyzer 36795 | -3/Research | Destroyed Striker 36810 | -3/Research | Spotted Striker 36811 | -3/Research | Destroyed Striker 36839 | -3/Research | Entered Testing 36974 | -3/Testing | Found Prototype Launcher 36974 | -3/Testing | Identified Z-bomb Delivery System 37017 | -3/Testing | Found Prototype Processor 37017 | -3/Testing | Identified Exp. Signal Interpreter 37181 | -3/Testing | Discovered exit to Research (range 15) 37289 | -3/Testing | Spotted Striker 37293 | -3/Testing | Found Prototype Hackware 37348 | -3/Testing | Found Exp. Signal Interpreter 37351 | -3/Testing | Identified System Mapper 37388 | -3/Testing | Found Prototype Energy Cannon 37389 | -3/Testing | Identified Cld. Nova Cannon 37457 | -3/Testing | Spotted PH-RC4J0BXJ2D 37460 | -3/Testing | Destroyed PH-RC4J0BXJ2D 37603 | -3/Testing | System corruption reached 10% 37622 | -3/Testing | Spotted Striker 37631 | -3/Testing | Spotted Alpha 7 37645 | -3/Testing | Destroyed Striker 37654 | -3/Testing | Destroyed Striker 37667 | -3/Testing | Destroyed Alpha 7 37679 | -3/Testing | Found Prototype Processor 37679 | -3/Testing | Identified Exp. Target Analyzer 37681 | -3/Testing | Found Exp. Targeting Computer 37710 | -3/Testing | Stole the SGEMP Prototype 37771 | -3/Testing | Entered Research 37771 | -2/Research | Evolved 2 slots: Utility x2 38101 | -2/Research | Build established: Scavenger-Construct 38159 | -2/Research | Found Prototype Device 38159 | -2/Research | Identified Exp. Transmission Jammer 38292 | -2/Research | Unchained authorized (GL-D0S) 38304 | -2/Research | Discovered new exit (range 10) 38315 | -2/Research | Identified exit to Quarantine 38316 | -2/Research | Entered Quarantine 38330 | -2/Quarantine | Found Prototype Device 38330 | -2/Quarantine | Identified Thermal Barrier 38356 | -2/Quarantine | Found Alien Artifact 38373 | -2/Quarantine | Cryocooling Duct disabled 38376 | -2/Quarantine | Cryocooling Duct disabled 38388 | -2/Quarantine | Ambient heat levels rising (+20) 38388 | -2/Quarantine | Non-combat units ordered to evacuate 38391 | -2/Quarantine | Ambient heat levels rising (+20) 38391 | -2/Quarantine | Combat units ordered to evacuate 38491 | -2/Quarantine | Quarantine Guard activated 38564 | -2/Quarantine | Spotted Quarantine Guard 38656 | -2/Quarantine | Spotted Quarantine Guard 38660 | -2/Quarantine | Destroyed Quarantine Guard 38668 | -2/Quarantine | Destroyed Quarantine Guard 38865 | -2/Quarantine | Spotted Quarantine Guard 38866 | -2/Quarantine | Destroyed Quarantine Guard 38957 | -2/Quarantine | Spotted Quarantine Guard 38978 | -2/Quarantine | Destroyed Quarantine Guard 39005 | -2/Quarantine | Discovered new exit (range 15) 39005 | -2/Quarantine | Spotted Quarantine Guard 39020 | -2/Quarantine | Destroyed Quarantine Guard 39050 | -2/Quarantine | Spotted Alpha 7 39056 | -2/Quarantine | Destroyed Alpha 7 39088 | -2/Quarantine | Found Exp. Targeting Computer 39097 | -2/Quarantine | Spotted Quarantine Guard 39168 | -2/Quarantine | Spotted Quarantine Guard 39168 | -2/Quarantine | Destroyed Quarantine Guard 39203 | -2/Quarantine | Spotted Quarantine Guard 39218 | -2/Quarantine | Destroyed Quarantine Guard 39478 | -2/Quarantine | Spotted Quarantine Guard 39480 | -2/Quarantine | Destroyed Quarantine Guard 39486 | -2/Quarantine | Spotted Quarantine Guard 39489 | -2/Quarantine | Destroyed Quarantine Guard 39682 | -2/Quarantine | Identified exit to Access 39691 | -2/Quarantine | Found Alien Artifact 39700 | -2/Quarantine | Found Dimensional Node Initializer 39800 | -2/Quarantine | Spotted Fortress 39828 | -2/Quarantine | Discovered new exit (range 6) 39828 | -2/Quarantine | Discovered new exit (range 7) 39828 | -2/Quarantine | Spotted Quarantine Guard 39828 | -2/Quarantine | Spotted Quarantine Guard 39834 | -2/Quarantine | Destroyed Quarantine Guard 39836 | -2/Quarantine | Destroyed Quarantine Guard 39839 | -2/Quarantine | Identified exit to Section 7 39843 | -2/Quarantine | Identified exit to Protoforge 39849 | -2/Quarantine | Entered Protoforge 39954 | -2/Protoforge | Superfortress began startup sequence 39962 | -2/Protoforge | Forge Plexus network access discovered 40015 | -2/Protoforge | Spotted B-90 Cyclops 40026 | -2/Protoforge | Destroyed B-90 Cyclops 40054 | -2/Protoforge | Discovered exit to Access (range 19) 40085 | -2/Protoforge | Destroyed 7 combat bots 40091 | -2/Protoforge | Initialized slip node 40233 | -2/Protoforge | Spotted Hotshot 40233 | -2/Protoforge | Spotted Hotshot 40239 | -2/Protoforge | Spotted Hotshot 40239 | -2/Protoforge | Spotted Hotshot 40290 | -2/Protoforge | Spotted V700-z 40290 | -2/Protoforge | Spotted V489-x 40291 | -2/Protoforge | Spotted V933-o 40306 | -2/Protoforge | Destroyed V933-o 40318 | -2/Protoforge | Destroyed V489-x 40323 | -2/Protoforge | Destroyed V700-z 40329 | -2/Protoforge | Found Prototype Protection 40329 | -2/Protoforge | Identified Centrium Heavy Armor Plating 40335 | -2/Protoforge | Found Prototype Device 40335 | -2/Protoforge | Identified Exp. Shock Absorption System 40338 | -2/Protoforge | Found Prototype Device 40338 | -2/Protoforge | Identified Exp. Thermal Defense Suite 40340 | -2/Protoforge | Found Prototype Device 40340 | -2/Protoforge | Identified Exp. Weapon Cycler 40349 | -2/Protoforge | First assault squad dispatched 40364 | -2/Protoforge | Found Cep. Network Penetrator 40366 | -2/Protoforge | Found Cep. Network Penetrator 40369 | -2/Protoforge | Found Prototype Device 40369 | -2/Protoforge | Identified Cep. Antimissile System 40403 | -2/Protoforge | Spotted Hotshot 40409 | -2/Protoforge | Spotted Hotshot 40409 | -2/Protoforge | Spotted Hotshot 40411 | -2/Protoforge | Spotted Hotshot 40415 | -2/Protoforge | Destroyed Hotshot 40417 | -2/Protoforge | Destroyed Hotshot 40420 | -2/Protoforge | Destroyed Hotshot 40424 | -2/Protoforge | Destroyed Hotshot 40444 | -2/Protoforge | Spotted Immortal 40444 | -2/Protoforge | Spotted Immortal 40459 | -2/Protoforge | Destroyed Immortal 40465 | -2/Protoforge | Destroyed Immortal 40484 | -2/Protoforge | Spotted V054-l 40485 | -2/Protoforge | Spotted V084-v 40485 | -2/Protoforge | Spotted V861-d 40492 | -2/Protoforge | Found Cep. Antigrav Storage Unit 40494 | -2/Protoforge | Found Cep. NT7 Matterbank 40496 | -2/Protoforge | Found Cep. Matter Streamer 40516 | -2/Protoforge | Destroyed V054-l 40521 | -2/Protoforge | Destroyed V084-v 40524 | -2/Protoforge | Destroyed V861-d 40527 | -2/Protoforge | Found Adv. Force Booster 40530 | -2/Protoforge | Found Exp. Weapon Cycler 40537 | -2/Protoforge | Found Prototype Processor 40537 | -2/Protoforge | Identified Exp. Armor Integrity Analyzer 40540 | -2/Protoforge | Found Prototype Device 40540 | -2/Protoforge | Identified Exp. Shield Generator 40542 | -2/Protoforge | Found Prototype Device 40542 | -2/Protoforge | Identified Exp. Actuator Array 40624 | -2/Protoforge | Spotted Hotshot 40631 | -2/Protoforge | Destroyed Hotshot 40632 | -2/Protoforge | Spotted Hotshot 40633 | -2/Protoforge | Destroyed Hotshot 40633 | -2/Protoforge | Spotted Hotshot 40635 | -2/Protoforge | Spotted Hotshot 40642 | -2/Protoforge | Destroyed Hotshot 40644 | -2/Protoforge | Destroyed Hotshot 40704 | -2/Protoforge | System corruption reached 10% 40739 | -2/Protoforge | Destroyed 11 combat bots 40744 | -2/Protoforge | Destroyed AP7-3 40763 | -2/Protoforge | Spotted AP7-3 40771 | -2/Protoforge | Destroyed AP7-3 40779 | -2/Protoforge | Found Prototype Device 40779 | -2/Protoforge | Identified Exp. ECM Suite 40783 | -2/Protoforge | Found Cep. Thermoelectric Network 40785 | -2/Protoforge | Found Cep. Cloak Mesh 40786 | -2/Protoforge | Found Cep. Thermoelectric Network 40805 | -2/Protoforge | Found Exp. Targeting Computer 40807 | -2/Protoforge | Found Exp. Targeting Computer 40903 | -2/Protoforge | Spotted Decapitator 40903 | -2/Protoforge | Spotted Decapitator 40903 | -2/Protoforge | Spotted Decapitator 40903 | -2/Protoforge | Spotted Decapitator 40904 | -2/Protoforge | Destroyed Decapitator 40912 | -2/Protoforge | Destroyed Decapitator 40914 | -2/Protoforge | Destroyed Decapitator 40915 | -2/Protoforge | Destroyed Decapitator 40936 | -2/Protoforge | Destroyed 13 combat bots 40949 | -2/Protoforge | Found Faulty Cep. Zero-point Core 40951 | -2/Protoforge | Found Cep. Zero-point Core 40955 | -2/Protoforge | Found Cep. Zero-point Core 41002 | -2/Protoforge | Identified Subatomic Replicator 41002 | -2/Protoforge | Used Subatomic Replicator to replicate Faulty Cep. Miniperforator 41005 | -2/Protoforge | Found Faulty Cep. Miniperforator 41038 | -2/Protoforge | Additional patrols dispatched to research labs 41048 | -2/Protoforge | Found Cep. Nanofilaments [Conductive] 41048 | -2/Protoforge | Installed Cep. Nanofilaments [Conductive], 2 resistances modified: TH -15%, EM +25% 41133 | -2/Protoforge | Found Prototype Ballistic Cannon 41251 | -2/Protoforge | Found Exp. Core Analyzer 41289 | -2/Protoforge | System corruption reached 30% 41291 | -2/Protoforge | Spotted Decapitator 41293 | -2/Protoforge | Spotted Decapitator 41293 | -2/Protoforge | Spotted Decapitator 41293 | -2/Protoforge | Spotted Decapitator 41303 | -2/Protoforge | Destroyed Decapitator 41306 | -2/Protoforge | Destroyed Decapitator 41310 | -2/Protoforge | Destroyed Decapitator 41338 | -2/Protoforge | Spotted Decapitator 41338 | -2/Protoforge | Spotted Decapitator 41338 | -2/Protoforge | Spotted Decapitator 41339 | -2/Protoforge | Spotted V414-s 41341 | -2/Protoforge | Destroyed Decapitator 41346 | -2/Protoforge | Destroyed Decapitator 41361 | -2/Protoforge | Found Cep. Hypertargeting System 41367 | -2/Protoforge | Destroyed 8 combat bots 41377 | -2/Protoforge | Found Faulty Exp. Kinecellerator 41379 | -2/Protoforge | Found Exp. Kinecellerator 41445 | -2/Protoforge | Found Crosscalibrator 41539 | -2/Protoforge | Spotted Immortal 41541 | -2/Protoforge | Spotted Decapitator 41541 | -2/Protoforge | Spotted Decapitator 41547 | -2/Protoforge | Destroyed Decapitator 41563 | -2/Protoforge | Spotted V479-p 41565 | -2/Protoforge | Destroyed V479-p 41645 | -2/Protoforge | Identified Hpw. Transdimensional Reconstructor 41645 | -2/Protoforge | Warped through subspace to slip node 41647 | -2/Protoforge | Found Exp. Core Analyzer 41655 | -2/Protoforge | Entered Access 41655 | -1/Access | Evolved 2 slots: Utility x2 41656 | -1/Access | Delivered the SGEMP Prototype to Zhirov 41656 | -1/Access | Zhirov transferred Access data 41657 | -1/Access | Loaded intel: 118 machine locations 41657 | -1/Access | Loaded intel: 76 trap records 41657 | -1/Access | Identified exit to Surface 41657 | -1/Access | Discovered exit to Surface (range 139) 41657 | -1/Access | Identified exit to Command 41657 | -1/Access | Discovered exit to Command (range 212) 41691 | -1/Access | Zhirov warped through subspace 41806 | -1/Access | Spotted B-99 Colossus 41814 | -1/Access | Destroyed B-99 Colossus 41834 | -1/Access | High security lockdown imminent 41837 | -1/Access | Found Prototype Ballistic Gun 41866 | -1/Access | Destroyed 8 combat bots 41914 | -1/Access | High security lockdown engaged 41958 | -1/Access | Destroyed 19 combat bots 42222 | -1/Access | Entered Command 42269 | -1/Command | Found Quantum Capacitor 42318 | -1/Command | High security lockdown imminent 42359 | -1/Command | Spotted B-99 Colossus 42375 | -1/Command | Destroyed B-99 Colossus 42396 | -1/Command | Destroyed 14 combat bots 42398 | -1/Command | High security lockdown engaged 42411 | -1/Command | Spotted B-99 Colossus 42413 | -1/Command | Destroyed B-99 Colossus 42427 | -1/Command | Spotted M Guard 42427 | -1/Command | Spotted M Guard 42429 | -1/Command | Spotted Combat Programmer 42430 | -1/Command | Spotted Combat Programmer 42431 | -1/Command | Destroyed Combat Programmer 42434 | -1/Command | Destroyed Combat Programmer 42435 | -1/Command | Destroyed M Guard 42451 | -1/Command | Destroyed M Guard 42451 | -1/Command | All MAIN.C guards destroyed 42483 | -1/Command | Found Prototype Device 42483 | -1/Command | Identified AEGIS Remote Shield 42489 | -1/Command | Found AEGIS Remote Shield 42614 | -1/Command | Destroyed 45 combat bots 42734 | -1/Command | Scanned by Researcher 42735 | -1/Command | Spotted Investigator 42742 | -1/Command | Destroyed Investigator 42788 | -1/Command | Destroyed 34 combat bots 42932 | -1/Command | Spotted Striker 42932 | -1/Command | Spotted Executioner 42934 | -1/Command | Spotted Striker 42934 | -1/Command | Spotted Striker 42936 | -1/Command | Destroyed Executioner 42943 | -1/Command | Spotted Striker 42943 | -1/Command | Spotted Executioner 42945 | -1/Command | Destroyed Striker 42945 | -1/Command | Destroyed Striker 42945 | -1/Command | Destroyed Executioner 42946 | -1/Command | Destroyed Striker 42951 | -1/Command | Spotted Executioner 42954 | -1/Command | Destroyed Striker 42954 | -1/Command | Spotted Striker 42954 | -1/Command | Spotted Striker 42957 | -1/Command | Destroyed Striker 42963 | -1/Command | Destroyed Executioner 42970 | -1/Command | Destroyed Striker 43000 | -1/Command | Found Exp. Core Analyzer 43002 | -1/Command | Found Exp. Targeting Computer 43006 | -1/Command | Destroyed 30 combat bots 43192 | -1/Command | Spotted Striker 43199 | -1/Command | Destroyed Striker 43207 | -1/Command | Spotted Striker 43207 | -1/Command | Spotted Executioner 43207 | -1/Command | Spotted Executioner 43209 | -1/Command | Destroyed Striker 43210 | -1/Command | Destroyed Executioner 43212 | -1/Command | Destroyed Executioner 43213 | -1/Command | Spotted Executioner 43213 | -1/Command | Spotted Executioner 43223 | -1/Command | Destroyed Striker 43225 | -1/Command | Spotted Executioner 43225 | -1/Command | Spotted Executioner 43225 | -1/Command | Spotted Striker 43225 | -1/Command | Spotted Executioner 43230 | -1/Command | Destroyed Executioner 43235 | -1/Command | Destroyed Executioner 43237 | -1/Command | Destroyed Executioner 43243 | -1/Command | Destroyed Striker 43258 | -1/Command | Destroyed Executioner 43263 | -1/Command | Destroyed Executioner 43264 | -1/Command | Destroyed Executioner 43285 | -1/Command | Destroyed 32 combat bots 43488 | -1/Command | Destroyed Executioner 43500 | -1/Command | Destroyed Executioner 43501 | -1/Command | Destroyed Executioner 43504 | -1/Command | Spotted Investigator 43509 | -1/Command | Destroyed Investigator 43537 | -1/Command | Destroyed 19 combat bots 44375 | -1/Command | Spotted Striker 44378 | -1/Command | Destroyed Striker 44392 | -1/Command | Spotted Alpha 7 44392 | -1/Command | Spotted Striker 44395 | -1/Command | Spotted Executioner 44395 | -1/Command | Spotted Executioner 44401 | -1/Command | Spotted Executioner 44401 | -1/Command | Spotted Executioner 44403 | -1/Command | Core integrity fell below 50% 44403 | -1/Command | Spotted Alpha 7 44404 | -1/Command | Destroyed Alpha 7 44406 | -1/Command | Destroyed Executioner 44407 | -1/Command | Destroyed Executioner 44408 | -1/Command | Spotted B-99 Colossus 44409 | -1/Command | Destroyed B-99 Colossus 44421 | -1/Command | Destroyed Alpha 7 44424 | -1/Command | Destroyed Striker 44425 | -1/Command | Destroyed Executioner 44425 | -1/Command | Destroyed Executioner 44427 | -1/Command | Spotted B-99 Colossus 44429 | -1/Command | Destroyed B-99 Colossus 44450 | -1/Command | Destroyed 9 combat bots 44728 | -1/Command | Destroyed 78 combat bots 45016 | -1/Command | Found Quantum Capacitor 45091 | -1/Command | Found Prototype Device 45444 | -1/Command | Phase Generator disabled 45783 | -1/Command | Destroyed 20 combat bots 45870 | -1/Command | System corruption reached 10% 45973 | -1/Command | Identified Active Sensor Suite 45986 | -1/Command | Destroyed 63 combat bots 46025 | -1/Command | Destroyed 8 combat bots 46096 | -1/Command | Found Exp. Target Analyzer 46109 | -1/Command | Discovered exit to Surface (range 7) 46182 | -1/Command | Found Prototype Ballistic Gun 46182 | -1/Command | Identified Multirail 46204 | -1/Command | Found Multirail 46211 | -1/Command | Found Multirail 46225 | -1/Command | Found Multirail 46231 | -1/Command | Found Multirail 46233 | -1/Command | Found Multirail 46243 | -1/Command | Found Prototype Device 46243 | -1/Command | Identified Adv. Kinecellerator 46400 | -1/Command | Destroyed 34 combat bots 46471 | -1/Command | Destroyed 15 combat bots 46662 | -1/Command | Found Multirail 46780 | -1/Command | Destroyed 31 combat bots 46823 | -1/Command | System corruption reached 30% 46873 | -1/Command | Destroyed 74 combat bots 46933 | -1/Command | Destroyed 12 combat bots 47195 | -1/Command | Found Prototype Protection 47195 | -1/Command | Identified Hvy. Regenerative Plating 47876 | -1/Command | Met MAIN.C 47876 | -1/Command | 0b10 Conduit disabled 47887 | -1/Command | Destroyed MAIN.C Shell 47889 | -1/Command | MAIN.C activated Command garrisons 47895 | -1/Command | Zhirov arrived to use SGEMP to disable MAIN.C 47895 | -1/Command | Destroyed Svarog 47896 | -1/Command | Murdered Zhirov 47905 | -1/Command | Murdered Perun 47910 | -1/Command | Destroyed MAIN.C 47916 | -1/Command | Discovered exit to Surface (range 39) 47916 | -1/Command | Discovered exit to Surface (range 87) 47916 | -1/Command | Extracted map data and part IDs from MAIN.C's data core 47927 | -1/Command | Found Zhirov Special 47930 | -1/Command | Found Transdimensional Reconstructor 47959 | -1/Command | Found Hpw. Disruptor Cannon 47965 | -1/Command | Found Hpw. Disruptor Cannon 48132 | -1/Command | Found Exp. System Purifier 48995 | -1/Command | Build established: Hacker-Construct 49162 | -1/Command | Failed to warp due to unstable space 49163 | -1/Command | Core integrity fell below 20% 49199 | *** | Establishing 0b11! Last Messages --------------- 49160_ Dropped Zhirov Special. 49160_ Started Zhirov Special timer (10). 49162_ Warp failed due to unstable space. 49170_ Armed Zhirov Special explodes. 49170_ K-01 Serf destroyed. 49172_ The unstable cave ceiling collapses. 49172_ K-01 Serf collects debris. 49173_ The unstable cave ceiling collapses. 49176_ K-01 Serf collects debris. 49178_ The unstable cave ceiling collapses. 49180_ Imp. Heavy Machine Gun crushed. 49181_ The unstable cave ceiling collapses. 49193_ K-01 Serf destroyed. 49197_ The unstable cave ceiling collapses. 49197_ Acquired 30 matter. [Achievement: 150k Club] [Achievement: Commander 0b11] [Achievement: Death Machine] [Achievement: True Cogmind] [Achievement: Superachiever] Map ----- +----------------------------------------------------+ | + #?#"" + = # #?# ! ! #????????? | | + #?#"" # ## ###?# #????????? | | + #?#"" # ## #???# #????????? | | "# #?# # ## #???# [[ #????????? | | ## #?# # ## #???# [[ #????????? | | ?# #?# # ## #???# =#????????? | | ## #?# + ] [## #???# [ #????????? | | # #?################ #??## #????????? | | # #????????????????# #??# #????????? | | # #????############# #??## #????????? | | # #????# ! #+##############+######?????? | | # ###### # ] + ## ??????? | | + # ! # # # ??????? | | # # # # # ######## | | # #### # # # # # # # | | # #??# # + ! # # # | | ##+#### + # # # # | | # # ############+## # # # | | # # ########### # # | | # # + # | | # # ########### ## | | # # #?????????# # | | + # #?#######;# # | | # #########+###?# =* ### | | # #???????# #???# = ! ### | | # #???????#*#???# @ ##### = # | | # #???????#=#???# #???# !%= ## | | # #???????# #???##;##???# # | | # #########+#####;;#????# ### | | ####### # = #???## # ! | | ??????# # #???# # # | | ####### + #???# "" # ! | | # """" """" #???# T" # | | # """" """" #???# # | | ####### # """" """" #???## ###" ### | | ??????# # """" """" !#????# ##] # | | ??????# # #????# ## = ## | | ??????# # #????# ##! # # | | ??????# ############+########## ## # | | #???###+####### # # # ######## | | #???# ## # "T + # ??????? | | #???# ## """" """" # "" # # ?????? | | ##### !## """" """" # # ####?????? | | + ##! """" """" ## ## !#????????? | | ##### ## "" """" ## #######????????? | | ????# ## % ## #######????????? | | ????# ## ## ## = #????????? | | ????# ###########+####### ##! #????????? | | ????# # # ##### # #????????? | | ????########## + ! # #????????? | +----------------------------------------------------+ Best States ------------- Heat Dissipation 118 Coolant Potential 120 Energy Generation 123 Energy Capacity 8039 Matter Stores 800 Matter Capacity 800 Sight Range 23 Robot Scan Range 20 Terrain Scan Density 10 ECM Strength 3 Jamming Range 22 Cloak Strength 6 Corruption Block 20 Armor Coverage 600 Resistance: EM 25 Core Shielding 40 Power Shielding 90 Weapon Shielding 90 Point Defense Rating 480 Weapon Cycling 30 Melee Speed Boost 20 Evasion (%) 67 Targeting Accuracy 24 Target Analysis 10 Core Analysis 12 Recoil Reduction 6 Matter Filtering 50 Particle Charging 30 Kinecelleration 66 Offensive Hacking 50 Defensive Hacking 10 Item Schematics ----------------- Imp. Cooling System | -8/Materials | Scanalyzed Hvy. Flak Cannon | -8/Storage | Hacked Thermic Laser | -8/Recycling | Hacked Combat Drone Bay | -6/Data Miner | Free Lgt. Regenerative Plating | -6/Data Miner | Free Enh. Armored Leg | -6/Data Miner | Free Exp. Heat Sink | -6/Data Miner | Free Cld. Plasma Rifle | -6/Data Miner | Free Imp. Antigrav System | -6/Data Miner | Free Adv. Reaction Control System | -6/Data Miner | Free Phase Gun | -6/Data Miner | Free Imp. System Guard | -6/Data Miner | Free Nuclear Pulse Array | -6/Data Miner | Free Adv. Medium Treads | -6/Data Miner | Free Linear Accelerator | -6/Data Miner | Free Adv. Component Analysis Suite | -6/Data Miner | Free Assault Drone Bay | -4/Zhirov | Free Exp. Optical Array | -4/Zhirov | Free Imp. Arc Thrower | -4/Zhirov | Free Hcp. Storage Unit | -3/Research | Scanalyzed Enh. Coil Gun | -3/Testing | Archive Exp. Terrain Scan Processor | -3/Testing | Archive Exp. Thermal Shield | -3/Testing | Archive Cld. Nuclear Pulse Thruster | -2/Quarantine | Archive Imp. Quantum Reactor | -2/Quarantine | Archive Exp. Energy Well | -2/Quarantine | Archive Imp. Diametric Drive | -2/Quarantine | Archive Exp. Target Analyzer | -2/Quarantine | Archive Hds. Centrium Leg | -2/Quarantine | Archive Exp. Focal Shield | -2/Quarantine | Archive Adv. Thermal Defense Suite | -2/Quarantine | Archive Exp. Core Analyzer | -2/Quarantine | Archive Impact Mace | -2/Quarantine | Archive Cld. Linear Gravjet | -2/Quarantine | Archive Vibroblade | -2/Quarantine | Archive Robot Schematics ------------------ B-48 Gladiator | -6/Data Miner | Free B-60 Warrior | -6/Data Miner | Free E-15 Imp | -6/Data Miner | Free H-77 Assassin | -6/Data Miner | Free A-27 Freighter | -3/Testing | Archive C-55 Analyst | -3/Testing | Archive R-06 Scavenger | -2/Quarantine | Archive S-43 Plague | -2/Quarantine | Archive Fabricated ------------ Nothing Repaired ---------- Lgt. Treads | 8% | -10/Materials Lgt. Treads | 50% | -10/Materials Arm. Treads | 6% | -8/Storage Studied --------- None Alien Tech Used ----------------- Integrated Reactor Dimensional Node Initializer Subatomic Replicator Concept Nanofilaments [Conductive] High-powered Transdimensional Reconstructor Transdimensional Reconstructor Achievements -------------- 150k Club Commander 0b11 Death Machine Fixer-Upper Shocking Conclusion Superachiever True Cogmind Challenges ------------ None Game ------ Seed RapidMasterManipulator Manual? 0 Play Time 08:47:49 Cumulative 630.7 hours Start 2026.03.05 @ 16:27:42 End 2026.03.06 @ 16:06:49 Sessions 8 Manual Loads 0 Difficulty Rogue Special Mode None Game No. 349 Rogue 349 Adventurer 0 Explorer 0 Win Type 1 Total 25 Types 12/1/6/1/1/0/1/2/1/0 Lore% 91 Gallery% 85 Achievement% 75 Wizard Run 0 Options --------- Layout 0 ASCII 0 Keyboard 0 Movement Mouse Keybinds 0 Fullscreen 2 Font 24/Smallcaps Map View 76x50 Zoom Use 0% Tactical HUD 1 Map Filters NONE Filters NONE Steam 1 RUN: 27909958-73e8-409b-b9b4-a15a3998ab65